{"text_format":"1","workbook":"xlsx","n_sheets":5,"sheets":["Table 1 Revenue","Table 2 Entities","TemplateMapXml","Table1Map","Lists"],"not_rendered":{"charts":0,"images":0,"macros":1,"external_links":1,"defined_names":36,"comments":0,"pivot_tables":0},"unopened":[],"bounds":{"document_bytes":16777216,"sheet_cells":100000,"rows_first":2000,"rows_last":500,"rows_between":2000,"halvings":0,"cell_chars":16384,"cell_head_chars":4096},"cells_cut":0,"cells_raw":0,"read":"whole","date_system":"1900"}

{"sheet":"Table 1 Revenue","index":0,"n_rows":59,"n_cols":13,"rows_kept":59,"cut":false,"hidden":false,"merged":[[4,8,5,8],[4,9,5,9],[4,10,5,10],[4,0,5,0],[4,1,4,3],[4,4,5,4],[4,7,5,7],[4,5,5,5],[4,6,5,6]]}
["TABLE 1 REVENUE"]
["Currency"]
["USD"]
[]
["Tax Jurisdiction","Revenues",null,null,"Profit / (Loss) before Income Tax","Income Tax Paid (on Cash basis)\n","Income Tax Accrued - Current Year\n","Stated Capital\n","Accumulated Earnings\n","Number of employees\n","Tangible Assets other than Cash and Cash equivalents\n(Mandatory)","Note"]
[null,"Unrelated Party\n","Related Party\n","Total \n"]
["Angola",1667898,0,1667898,-2345630,0,0,290594,295572394,5.5,0]
["Argentina",0,0,0,-1769510,15570,0,17649021,16561265,4,42482]
["Australia",3805951882,246961613,4052913495,2620771471,339347396,423801690,2384275840,262039491,1706,3480311533]
["Belgium",118,12587177,12587294,992086,1038,943,11088546,-10352686,77,2029553]
["Bermuda",1919293,132122593,134041886,48385050,65115,65115,214532169,-493210917,0,0,"(1)"]
["Botswana",4267111171,2940116879,7207228049,461545310,89943249,91743180,252137725,-450515331,1524,1590838681]
["Brazil",155545575,653099348,808644923,-581282410,2482,22417153,22027701639,12249461536,3417,1523560877]
["Canada",29990544,571727519,601718063,66059928,15679826,29159574,354139877,3348827958,857,393648708]
["Chile",1652496197,2832208417,4484704614,1305943208,292787367,460709462,2184707649,-6080934247,4293,6442429455]
["China",55601505,24513389,80114894,13715137,370611,296104,34395475,20682806,271,40048906]
["Colombia",0,0,0,-1282910,0,0,23840812,23263183,2,10566]
["Congo (Democratic Republic of the)",0,0,0,0,0,0,21958600,0,0,0]
["Ecuador",0,0,0,-2167419,0,0,40900,4740000,4,0]
["Finland",0,0,0,-28692940,0,0,134813011,30283830,3,5039650]
["France",18719248,0,18719248,234749,0,33709,0,5360826,23,20050963]
["Germany",80542907,6562283,87105190,5716378,866832,1623521,30315789,-19645761,306,32680364]
["Guernsey",0,0,0,0,0,0,0,0,0,0]
["Hong Kong",43640673,5074804,48715477,-1233456,0,429884,18069096,3696518,28,25439398]
["India",463377,18817563,19280941,-2432520,25193,60224,25946644,13308893,110,7036782]
["Indonesia",0,0,0,0,0,0,4400000,220,0,0,null," "]
["Ireland",107693293,133001339,240694632,14074554,3535821,3082986,30504929,-64123918,563,84188986]
["Isle of Man",0,257555,257555,-2874059,0,0,160440,72079201,0,0]
["Israel",11025,907543,918568,72236,23963,28425,4010000,2650653,2,54889]
["Italy",-4,1869754,1869749,112326,72915,36281,28523,-237248,8,64859]
["Japan",23353379,9069182,32422561,688532,51425,194434,4678566,15166491,25,936185]
["Lesotho",0,0,0,0,0,0,0,0,0,0]
["Liberia",0,0,0,0,0,0,0,-28,0,0]
["Luxembourg",516015433,1440894088,1956909521,154507587,4652032,7142492,31485246340,-4573032739,3,7382557,"(2)"]
["Macao",3312291,0,3312291,-337512,0,0,12400,1742939,0,4649882]
["Mexico",0,0,0,0,0,0,0,0,0,0]
["Mozambique",0,0,0,0,0,0,0,0,0,0]
["Namibia",275590075,1304518761,1580108837,149259724,59509794,59217550,116592946,-151768232,1429,270024915]
["Netherlands",0,0,0,58004,68108,-1233,53013514,2853293,1,0]
["Norway",0,0,0,0,0,0,0,0,0,0]
["Papua New Guinea",0,0,0,-6278614,0,0,8186025,40341215,9,0]
["Peru",25705719,0,25705719,-2414556,-22901,0,1993703617,569260654,211,1958131173]
["Philippines",0,0,0,0,0,0,103140,0,0,0]
["Sierra Leone",0,0,0,0,0,0,870600,0,0,0]
["Singapore",10223184668,323591390,10546776058,325740893,16786854,12533126,166374504,-211454846,197,150329562,"(3)"]
["South Africa",2162532290,10223981698,12386513988,1412298125,556532971,570663078,6606126686,-16744144192,46575,12158080999]
["Sweden",0,0,0,-1186158,72019,22992,1906000,-2708928,4,0]
["Switzerland",231731.26331432399,229936,461667.26331432397,373449,-307964,1694,10516034,124753179,0,0]
["Taiwan, Province of China[a]",23171399,0,23171399,880587,0,0,162300,4066047,11,5498266]
["Tanzania, United Republic of",0,0,0,0,0,0,434600,0,0,0]
["United Arab Emirates",0,0,0,0,0,0,27248,-37096,7,40002]
["United Kingdom",4514105226,3004269959,7518375185,617385009.7270509,107782501,113542492,139943332228,-15680522466,1099,528023392,"(4)"]
["United States of America",129701544,43410965,173112509,-9420801,1223359,2345853,1261359852,638168699,126,60118710]
["Venezuela (Bolivarian Republic of)",0,1804299,1804299,1804299,0,0,6.9531399810000005,0,0,0]
["Virgin Islands (British)",0,0,0,0,0,0,0,0,0,0]
["Zambia",0,0,0,0,0,0,23422719.474000003,0,0,0]
["Zimbabwe",14286902,145383220,159670122,56879454,37954,2618,50000,-87120240,1142,463184351]
[null,{"$f":"SUM(B7:B57)","v":28132545359.263313},{"$f":"SUM(C7:C57)","v":24076981274},52209526632.263313,6613779601.7270508,1489123530,1799153347,209451126605.42712,-26824927584,64042.5,29253876646]
[null,{"$f":"+B58-'[1]Updated Version'!B59","v":0.11331558227539063},{"$f":"+C58-'[1]Updated Version'!C59","v":-9.998321533203125E-3},{"$f":"+D58-'[1]Updated Version'!D59","v":0.1033172607421875},{"$f":"+E58-'[1]Updated Version'!E59","v":-0.27294921875},{"$f":"+F58+'[1]Updated Version'!F59","v":0},{"$f":"+G58+'[1]Updated Version'!G59","v":0},{"$f":"+H58-'[1]Updated Version'!H59","v":0.4271240234375},{"$f":"+I58-'[1]Updated Version'!I59","v":0},{"$f":"+J58-'[1]Updated Version'!J59","v":-0.5},{"$f":"+K58-'[1]Updated Version'!K59","v":0}]

{"sheet":"Table 2 Entities","index":1,"n_rows":443,"n_cols":16,"rows_kept":443,"cut":false,"hidden":false,"merged":[[2,0,3,0],[2,1,3,1],[2,2,2,14]]}
["TABLE 2 ENTITIES"]
[]
["Tax Jurisdiction\n","Name\n","Main Business Activities "]
[null,null,"Research and Development\n","Holding or Managing Intellectual Property","Purchasing or Procurement","Manufacturing or Production","Sales, Marketing or Distribution","Administrative, Management or Support Services","Provision of Services to Unrelated Parties","Internal Group Finance","Regulated Financial Services","Insurance","Holding Shares or Other Equity Instruments","Dormant","Other","Additional Entity Information"]
["Angola","De Beers Angola Holdings Ltda",null,null,null,null,null,null,null,null,null,null,"Yes"]
["Angola","De Beers Centenary Angola Properties Angola Branch",null,null,null,null,null,"Yes"]
["Angola","De Beers Centenary Angola Properties Ltd",null,null,null,null,null,"Yes",null,null,null,null,"Yes"]
["Argentina","Minera Anglo American Argentina S.A.",null,null,null,null,null,null,null,null,null,null,"Yes"]
["Australia","Anglo American Australia Finance Limited",null,null,null,null,null,null,null,"Yes"]
["Australia","Anglo American Australia Holdings Pty Limited",null,"Yes"]
["Australia","Anglo American Australia Limited",null,null,null,"Yes",null,null,null,null,null,null,"Yes"]
["Australia","Anglo American Exploration (Australia) Pty Ltd",null,null,null,null,null,"Yes",null,null,null,null,null,null,"Yes","Exploration"]
["Australia","Anglo American Metallurgical Coal Assets Eastern Australia Limited",null,null,null,null,null,null,null,null,null,null,"Yes"]
["Australia","Anglo American Metallurgical Coal Assets Pty Ltd",null,null,null,null,null,null,null,null,null,null,"Yes"]
["Australia","Anglo American Metallurgical Coal Finance Ltd",null,null,null,null,null,null,null,"Yes"]
["Australia","Anglo American Metallurgical Coal Holdings Limited",null,null,null,null,null,null,null,null,null,null,"Yes"]
["Australia","Anglo American Metallurgical Coal Pty Ltd","Yes",null,null,null,"Yes","Yes",null,null,null,null,"Yes"]
["Australia","Anglo American Thermal Coal (Australia) Pty. Ltd.",null,null,"Yes",null,null,"Yes"]
["Australia","Anglo Coal (Archveyor Management) Pty Limited ",null,null,null,null,null,null,null,null,null,null,null,"Yes"]
["Australia","Anglo Coal (Capcoal Management) Pty Limited ","Yes",null,"Yes","Yes",null,"Yes"]
["Australia","Anglo Coal (Dawson Management) Pty Ltd","Yes",null,"Yes","Yes",null,"Yes"]
["Australia","Anglo Coal (Dawson Services) Pty Ltd",null,null,null,null,"Yes",null,null,null,null,null,null,null,"Yes","Employment company"]
["Australia","Anglo Coal (Dawson South Management) Pty Ltd ",null,null,null,null,null,"Yes"]
["Australia","Anglo Coal (Dawson South) Pty Ltd",null,null,null,null,null,"Yes"]
["Australia","Anglo Coal (Dawson) Holdings Pty Ltd",null,null,null,null,null,null,null,null,null,null,"Yes"]
["Australia","Anglo Coal (Dawson) Limited",null,null,null,null,null,null,null,null,null,null,"Yes"]
["Australia","Anglo Coal (German Creek) Pty Ltd","Yes",null,"Yes","Yes","Yes","Yes",null,null,null,null,"Yes",null,"Yes","JV participant company"]
["Australia","Anglo Coal (Grasstree Management) Pty Limited",null,null,null,null,null,"Yes",null,null,null,null,null,null,"Yes","Employment company"]
["Australia","Anglo Coal (Grosvenor Management) Pty Ltd","Yes",null,"Yes","Yes",null,"Yes"]
["Australia","Anglo Coal (Grosvenor) Pty Ltd","Yes",null,"Yes","Yes","Yes","Yes",null,null,null,null,"Yes"]
["Australia","Anglo Coal (Jellinbah) Holdings Pty Ltd",null,null,null,null,null,null,null,null,null,null,"Yes"]
["Australia","Anglo Coal (Monash Energy) Holdings Pty Limited",null,null,null,null,null,null,null,null,null,null,"Yes"]
["Australia","Anglo Coal (Moranbah North Management) Pty Limited ","Yes",null,"Yes","Yes",null,"Yes"]
["Australia","Anglo Coal (Roper Creek) Pty Ltd",null,null,"Yes",null,"Yes"]
["Australia","Anglo Coal (Theodore South) Pty Ltd",null,null,"Yes",null,null,null,null,null,null,null,null,null,"Yes","JV participant company"]
["Australia","Anglo Operations (Australia) Pty Ltd",null,null,null,null,null,null,null,null,null,null,"Yes"]
["Australia","Dawson Coal Processing Pty Ltd",null,null,null,null,null,"Yes",null,null,null,null,null,null,"Yes","Employment company"]
["Australia","Dawson Highwall Mining Pty Ltd ",null,null,null,null,null,null,null,null,null,null,null,"Yes"]
["Australia","Dawson Sales Pty Ltd ",null,null,null,null,"Yes"]
["Australia","Dawson South Sales Pty Ltd",null,null,null,null,"Yes"]
["Australia","De Beers Australia Exploration Limited",null,null,null,null,null,"Yes",null,null,null,null,null,null,"Yes","Exploration"]
["Australia","German Creek Coal Pty. Limited",null,null,null,null,"Yes"]
["Australia","Grosvenor Sales Pty Ltd",null,null,null,null,"Yes"]
["Australia","Jena Pty. Limited",null,null,null,null,null,null,null,null,null,null,"Yes"]
["Australia","Monash Energy Coal Ltd",null,null,null,null,null,null,null,null,null,null,null,"Yes"]
["Australia","Moranbah North Coal (No2) Pty Ltd","Yes",null,"Yes","Yes","Yes",null,null,null,null,null,"Yes"]
["Australia","Moranbah North Coal (Sales) Pty Ltd",null,null,null,null,"Yes"]
["Australia","Jena Unit Trust",null,null,null,null,null,null,null,null,null,null,"Yes"]
["Australia","Anglo American Technical & Sustainability Services Australia Branch",null,null,null,null,null,"Yes"]
["Australia","Moranbah North Coal Pty Ltd","Yes",null,"Yes","Yes","Yes",null,null,null,null,null,"Yes"]
["Belgium","De Beers Auction Sales Belgium NV",null,null,null,null,null,"Yes"]
["Belgium","International Institute of Diamond Grading and Research (Belgium) NV",null,null,null,null,"Yes","Yes"]
["Belgium","Diamond Trading Company Proprietary Ltd NV",null,null,null,null,null,null,null,null,null,null,null,"Yes"]
["Bermuda","Coromin Limited",null,null,null,null,null,null,null,null,null,"Yes","Yes"]
["Bermuda","Holdac Limited",null,null,null,null,null,null,null,null,null,"Yes"]
["Botswana","Ambase Prospecting (Botswana) (Pty) Ltd",null,null,null,null,null,null,null,null,null,null,null,"Yes"]
["Botswana","Anglo American Corporation Botswana (Services) Limited",null,null,null,null,null,"Yes"]
["Botswana","Anglo Coal Botswana (Pty) Ltd",null,null,null,null,null,null,null,null,null,null,null,"Yes"]
["Botswana","De Beers Global Sightholder Sales (Pty) Ltd",null,null,null,null,"Yes"]
["Botswana","De Beers Holdings Botswana (Pty) Ltd",null,null,null,null,null,null,null,null,null,null,null,null,"Yes","Exploration"]
["Botswana","Debswana ART Fund Trust",null,null,null,null,null,"Yes"]
["Botswana","Debswana Diamond Company (Pty) Ltd",null,null,null,"Yes"]
["Botswana","Diamond Trading Company Botswana (Pty) Ltd",null,null,null,null,"Yes"]
["Botswana","Tokafala (Proprietary) Limited ",null,null,null,null,null,"Yes",null,null,null,null,"Yes"]
["Brazil","Anglo American Investimentos - Minério de Ferro Ltda.",null,null,null,null,null,null,null,null,null,null,"Yes"]
["Brazil","Anglo American Minerio de Ferro Brasil S.A.","Yes",null,null,"Yes",null,"Yes",null,null,null,null,"Yes"]
["Brazil","Anglo American Niquel Brasil Ltda.","Yes",null,null,"Yes",null,"Yes",null,null,"Yes",null,"Yes"]
["Brazil","Anglo American Participacoes Minerio de Ferro Ltda.",null,null,null,null,null,null,null,null,null,null,"Yes"]
["Brazil","Anglo Ferrous Brazil Participações S.A.",null,null,null,"Yes",null,null,null,null,null,null,"Yes","Yes"]
["Brazil","Câmara de Comércio Brasil República Sul Africana",null,null,null,null,null,null,null,null,null,null,null,"Yes"]
["Brazil","Element Six Ltda.",null,null,null,null,null,"Yes"]
["Brazil","Ferroport Logística Comercial Exportadora S.A.",null,null,null,"Yes",null,"Yes",null,null,null,null,"Yes"]
["Brazil","Instituto Anglo American Brasil",null,null,null,null,null,null,null,null,null,null,null,null,"Yes","Associative activities"]
["Brazil","Mineração Tariana Ltda.","Yes",null,null,null,null,null,null,null,null,null,"Yes"]
["Brazil","Mineração Itamaracá Ltda.",null,null,null,"Yes",null,"Yes"]
["Canada","0912055 BC Ltd ",null,null,null,null,null,null,null,null,null,null,null,"Yes"]
["Canada","Anglo American Exploration (Canada) Ltd.",null,null,null,null,null,null,null,null,null,null,null,null,"Yes","Exploration  "]
["Canada","De Beers Canada Holdings Inc.",null,null,null,null,null,null,null,null,null,null,"Yes"]
["Canada","Central Ecuador Holdings Ltd",null,null,null,null,null,null,null,null,null,null,"Yes"]
["Canada","Peregrine Diamonds Ltd",null,"Yes"]
["Canada","Peregrine Exploration Ltd",null,"Yes"]
["Canada","Peregrine Mining Management Ltd",null,null,null,null,null,null,null,null,null,null,null,"Yes"]
["Canada","De Beers Canada Inc.",null,null,null,"Yes",null,"Yes"]
["Canada","Kaymin Resources Limited",null,null,null,null,null,null,null,null,null,null,null,null,"Yes","Not managed"]
["Canada","Peace River Coal Inc.",null,null,null,"Yes",null,null,null,null,null,null,null,"Yes"]
["Canada","4259785 Canada Inc.",null,null,null,null,null,null,null,null,null,null,null,"Yes"]
["Chile","Anglo American Chile Inversiones S.A.",null,null,null,null,"Yes"]
["Chile","Anglo American Chile Ltda",null,null,null,null,null,"Yes"]
["Chile","Anglo American Sur S.A.",null,null,null,"Yes"]
["Chile","Compania Minera Dona Ines De Collahuasi SCM",null,null,null,"Yes"]
["Chile","Compañía Minera Westwall S.C.M",null,null,null,null,null,null,null,null,null,null,null,null,"Yes","Exploration"]
["Chile","Inversiones Anglo American Norte SpA",null,null,null,null,null,null,null,null,null,null,"Yes"]
["Chile","Anglo American Copper Finance SpA",null,null,null,null,null,null,null,null,"Yes"]
["Chile","Anglo American Marketing Chile SpA",null,null,null,null,"Yes"]
["Chile","Anglo American Technical & Sustainability Services Ltd, Agencia en Chile",null,null,null,null,null,"Yes"]
["Chile","Inversiones Anglo American Sur SpA",null,null,null,null,null,null,null,null,null,null,"Yes"]
["Chile","Inversiones Minorco Chile SpA",null,null,null,null,null,null,null,null,null,null,"Yes"]
["China","Element Six Hard Materials (Wuxi) Co., Ltd",null,null,null,"Yes"]
["China","Element Six Trading (Shanghai) Co., Ltd",null,null,null,null,"Yes"]
["China","Forevermark Marketing Shanghai Company Limited",null,null,null,null,"Yes","Yes"]
["China","Forevermark Marketing (Shanghai) Limited, Xi’an No. 1 Branch",null,null,null,null,"Yes"]
["China","Forevermark Marketing Shanghai Company Limited - Beijing Branch",null,null,null,null,"Yes"]
["China","Forevermark Marketing Shanghai Company Limited - Shanghai Branch",null,null,null,null,"Yes"]
["China","Platinum Guild International (Shanghai) Co., Ltd",null,null,null,null,null,null,null,null,null,null,null,null,"Yes","Consultancy, market research and promotion"]
["China","Anglo American Resources Trading (China) Co. Ltd.",null,null,null,null,"Yes"]
["China","De Beers Jewellers Commercial (Shanghai) Co., Ltd",null,null,null,null,"Yes"]
["Colombia","Anglo American Colombia Exploration S.A.",null,null,null,null,null,null,null,null,null,null,"Yes"]
["Congo (Democratic Republic of the)","Ambase Exploration Africa (DRC) Sprl",null,null,null,null,null,null,null,null,null,null,null,"Yes"]
["Congo (Democratic Republic of the)","De Beers DRC Exploration SARL",null,null,null,null,null,null,null,null,null,null,null,"Yes"]
["Ecuador","Central Ecuador EC-CT S.A.",null,null,null,null,null,"Yes"]
["Ecuador","Anglo American Ecuador S.A.",null,null,null,null,null,null,null,null,null,null,null,null,"Yes","Exploration"]
["Finland","AA Sakatti Mining Oy",null,null,null,"Yes",null,null,null,null,null,null,null,null,"Yes","Exploration"]
["Finland","Anglo American Exploration B.V. - Finnish PE",null,null,null,null,null,null,null,null,null,null,"Yes"]
["France","De Beers Jewellers French Branch",null,null,null,null,"Yes"]
["Germany","Element Six GmbH (DECAR)",null,null,null,"Yes","Yes"]
["Guernsey","Intersea Pension Services Ltd",null,null,null,null,null,null,null,null,null,null,null,"Yes"]
["Hong Kong","De Beers Auction Sales Holdings Ltd",null,"Yes"]
["Hong Kong","Forevermark Limited",null,null,null,null,"Yes","Yes"]
["Hong Kong","Platinum Guild International (Hong Kong) Limited",null,null,null,null,null,null,null,null,null,null,null,null,"Yes","Consultancy, market research and promotion"]
["Hong Kong","De Beers Jewellers (Hong Kong) Limited",null,null,null,null,"Yes"]
["India","Anglo American Exploration (India) Private Limited",null,null,null,null,null,null,null,null,null,null,"Yes"]
["India","Anglo American Services (India) Private Limited",null,null,null,null,null,"Yes"]
["India","De Beers India Private Limited",null,null,null,null,null,"Yes"]
["India","Forevermark Diamonds Private Limited",null,null,null,null,"Yes","Yes"]
["India","Inglewood Minerals Private Limited",null,null,null,null,null,null,null,null,null,null,null,"Yes"]
["India","International Institute of Diamond Grading & Research India Private Limited",null,null,null,null,null,"Yes"]
["India","Platinum Guild India Private Limited",null,null,null,null,null,null,null,null,null,null,null,null,"Yes","Consultancy, market research and promotion"]
["Indonesia","PT Anglo American Indonesia",null,null,null,null,null,null,null,null,null,null,null,"Yes"]
["Indonesia","PT Minorco Services Indonesia",null,null,null,null,null,null,null,null,null,null,null,"Yes"]
["Ireland","Coromin Insurance (Ireland) DAC",null,null,null,null,null,null,null,null,null,"Yes"]
["Ireland","Element Six (Holdings) Limited",null,null,null,null,null,null,null,null,null,null,"Yes"]
["Ireland","Element Six (Trade Marks)",null,null,null,null,null,null,null,null,null,null,null,"Yes"]
["Ireland","Element Six Abrasives Treasury Limited",null,null,null,null,null,null,null,"Yes"]
["Ireland","Element Six Limited",null,null,"Yes","Yes","Yes","Yes",null,null,null,null,"Yes"]
["Ireland","Element Six Treasury Limited",null,null,null,null,null,null,null,"Yes"]
["Isle of Man","Element Six (Isle of Man) Corporate Trustee Limited",null,null,null,null,null,null,null,null,null,null,null,"Yes"]
["Isle of Man","Element Six Limited",null,null,null,"Yes"]
["Israel","De Beers Auction Sales Israel Ltd",null,null,null,null,null,"Yes"]
["Italy","Forevermark Italy S.R.L.",null,null,null,null,"Yes","Yes"]
["Italy","Anglo American Italy S.R.L.",null,null,null,null,null,"Yes"]
["Japan","Element Six Ltd",null,null,null,null,"Yes"]
["Japan","Forevermark KK",null,null,null,null,"Yes","Yes"]
["Japan","PGI KK",null,null,null,null,null,null,null,null,null,null,null,null,"Yes","Consultancy, market research and promotion"]
["Japan","De Beers Jewellers Japan K.K.",null,null,null,null,"Yes"]
["Lesotho","Amcoal Collieries Recruiting Organisation (Lesotho) (Pty) Ltd",null,null,null,null,null,"Yes"]
["Liberia","Anglo American Kumba Exploration (Liberia) Ltd",null,null,null,null,null,null,null,null,null,null,null,null,"Yes","Exploration"]
["Luxembourg","KIO Exploration Liberia Sarl",null,null,null,null,null,null,null,null,null,null,null,"Yes"]
["Luxembourg","Kumba Iron Ore Holdings Sarl",null,null,null,null,null,null,null,null,null,null,"Yes"]
["Macao","De Beers Jewellers (Macau) Company Limited",null,null,null,null,"Yes"]
["Mexico","Anglo American Mexico S.A. de C.V.",null,null,null,null,null,null,null,null,null,null,"Yes"]
["Mexico","Servicios Anglo American Mexico S.A. de C.V.",null,null,null,null,null,null,null,null,null,null,null,null,"Yes","Exploration"]
["Mozambique","Anglo American Corporation Mocambique Servicos Limitada",null,null,null,null,null,null,null,null,null,null,null,"Yes"]
["Namibia","Ambase Prospecting (Namibia) (Pty) Ltd",null,null,null,null,null,null,null,null,null,null,null,null,"Yes","Exploration"]
["Namibia","De Beers Marine Namibia (Pty) Ltd",null,null,null,"Yes"]
["Namibia","De Beers Namibia Holdings (Pty) Ltd",null,null,null,null,null,null,null,null,null,null,"Yes"]
["Namibia","Debmarine Namdeb Foundation",null,null,null,null,null,"Yes"]
["Namibia","DTC Valuations Namibia (Pty) Ltd",null,null,null,null,null,null,null,null,null,null,null,"Yes"]
["Namibia","Exclusive Properties (Pty) Ltd",null,null,null,null,null,"Yes"]
["Namibia","Longboat Trading (Pty) Ltd",null,null,null,null,null,null,null,null,null,null,null,"Yes",null,"Not managed"]
["Namibia","Namdeb Diamond Corporation (Pty) Ltd",null,null,null,"Yes"]
["Namibia","Namdeb Holdings (Pty) Ltd",null,null,null,null,null,null,null,null,null,null,"Yes"]
["Namibia","Namdeb Hospital Pharmacy (Pty) Ltd",null,null,null,null,null,"Yes"]
["Namibia","Namdeb Properties (Pty) Ltd",null,null,null,null,null,"Yes"]
["Namibia","Namibia Diamond Trading Company (Pty) Ltd",null,null,null,null,"Yes"]
["Namibia","Oranjemund Town Management Company (Pty) Ltd",null,null,null,null,null,"Yes"]
["Netherlands","Element Six N.V.",null,null,null,null,"Yes"]
["Norway","De Beers Marine (Pty) Ltd - Norwegian PE",null,null,null,"Yes",null,"Yes"]
["Papua New Guinea","Anglo American Exploration PNG Limited",null,null,null,null,null,null,null,null,null,null,null,null,"Yes","Exploration"]
["Papua New Guinea","Anglo American (Star Mountain) Limited",null,null,null,null,null,null,null,null,null,null,null,null,"Yes","Exploration"]
["Peru","Anglo American Chile Ltda - Peru PE",null,null,null,null,null,"Yes"]
["Peru","Anglo American Peru S.A.",null,null,null,null,null,"Yes",null,null,null,null,null,null,"Yes","Exploration"]
["Peru","Anglo American Quellaveco S.A.",null,null,null,"Yes"]
["Peru","Anglo American Servicios Perú S.A.",null,null,null,null,null,"Yes",null,null,null,null,null,"Yes"]
["Peru","Asociación Michiquillay",null,null,null,null,null,null,null,null,null,null,null,null,"Yes","Not-for-profit organisation. Development and execution for Social Responsibility Programmes"]
["Peru","Asociación Quellaveco",null,null,null,null,null,null,null,null,null,null,null,null,"Yes","Not-for-profit organisation. Development and execution for Social Responsibility Programmes"]
["Peru","Cobre del Norte S.A.",null,null,null,null,null,"Yes"]
["Philippines","Anglo American Exploration (Philippines) Inc.",null,null,null,null,null,null,null,null,null,null,"Yes"]
["Sierra Leone","Gemfair (SL) Limited",null,null,null,null,"Yes"]
["Singapore","Anglo American Exploration (Singapore) Pte. Ltd.",null,null,null,null,null,null,null,null,null,null,"Yes"]
["Singapore","Anglo American Marketing Limited - Singapore branch",null,null,null,null,"Yes"]
["Singapore","Anglo American Mongolia Holdings Pte. Ltd.",null,null,null,null,null,null,null,null,null,null,"Yes"]
["Singapore","Anglo Platinum Marketing Limited - Singapore branch",null,null,null,null,"Yes"]
["Singapore","De Beers Auction Sales Singapore Pte. Ltd.",null,null,null,null,null,"Yes"]
["Singapore","Kumba Singapore Pte. Ltd.",null,null,null,null,"Yes"]
["Singapore","MR Iron Ore Marketing Services Singapore Pte. Ltd.",null,null,null,null,"Yes"]
["South Africa","Amaprop Townships Limited",null,null,null,null,null,null,null,null,null,null,null,"Yes","Yes","Holder of property"]
["South Africa","Ambase Investment Africa (Botswana) (Pty) Ltd",null,null,null,null,null,null,null,null,null,null,null,"Yes"]
["South Africa","Anglo American South Africa Investments Proprietary Limited",null,null,null,null,null,null,null,null,null,null,"Yes"]
["South Africa","Anglo American Zimele Loan Fund (Pty) Ltd",null,null,null,null,null,null,null,null,null,null,null,null,"Yes","Enterprise development initiative and funding managing"]
["South Africa","South Africa Coal Operations Proprietary Limited",null,null,null,null,null,null,null,null,null,null,"Yes"]
["South Africa","Anglo American Technical & Sustainability Services South Africa Branch",null,null,null,null,null,null,null,null,null,null,null,"Yes"]
["South Africa","Ambase Investment Africa (DRC) (Pty) Ltd",null,null,null,null,null,null,null,null,null,null,null,"Yes"]
["South Africa","Ambase Investment Africa (Namibia) (Pty) Ltd",null,null,null,null,null,null,null,null,null,null,null,"Yes"]
["South Africa","Ambase Investment Africa (Tanzania) (Pty) Ltd",null,null,null,null,null,null,null,null,null,null,"Yes"]
["South Africa","Ambase Investment Africa (Zambia) (Pty) Ltd",null,null,null,null,null,null,null,null,null,null,"Yes"]
["South Africa","Anglo American Corporation of South Africa (Pty) Ltd",null,null,null,null,null,null,null,null,null,null,null,"Yes"]
["South Africa","Anglo American EMEA Shared Services (Pty) Ltd",null,null,null,null,null,"Yes"]
["South Africa","Anglo American Farms (Pty) Ltd",null,null,null,null,null,null,null,null,null,null,"Yes"]
["South Africa","Anglo American Farms Investment Holdings (Pty) Ltd",null,null,null,null,null,null,null,null,null,null,"Yes"]
["South Africa","Anglo American Group Employee Shareholder Nominees (Pty) Ltd",null,null,null,null,null,"Yes"]
["South Africa","Anglo American Inyosi Coal (Pty) Ltd",null,null,null,"Yes"]
["South Africa","Anglo American Platinum Limited",null,null,null,null,null,null,null,null,null,null,"Yes"]
["South Africa","Anglo American Properties Limited",null,null,null,null,null,"Yes"]
["South Africa","Anglo American Prospecting Services (Pty) Ltd",null,null,null,null,null,null,null,null,null,null,null,"Yes"]
["South Africa","Anglo American SA Finance Limited",null,null,null,null,null,null,null,"Yes"]
["South Africa","Anglo American Sebenza Fund (Pty) Ltd",null,null,null,null,null,"Yes"]
["South Africa","Anglo American SEFA Mining Fund (Pty) Ltd",null,null,null,null,null,null,null,null,null,null,"Yes"]
["South Africa","Anglo American South Africa Limited",null,null,null,null,null,null,null,null,null,null,"Yes"]
["South Africa","Anglo American Zimele (Pty) Limited",null,null,null,null,null,null,null,null,null,null,null,null,"Yes","Not managed"]
["South Africa","Anglo American Zimele Community Fund (Pty) Ltd",null,null,null,null,null,"Yes"]
["South Africa","Anglo American Zimele Green Fund (Pty) Ltd",null,null,null,null,null,"Yes"]
["South Africa","Anglo Coal Investment Africa (Botswana) (Pty) Ltd",null,null,null,null,null,null,null,null,null,null,"Yes"]
["South Africa","Anglo Corporate Enterprises (Pty) Ltd",null,null,null,null,null,"Yes"]
["South Africa","Anglo Inyosi Coal Security Company Limited",null,null,null,null,null,null,null,null,null,null,null,"Yes"]
["South Africa","Anglo Operations (Pty) Ltd",null,null,null,"Yes",null,"Yes",null,null,null,null,"Yes"]
["South Africa","Anglo Platinum Management Services (Pty) Ltd",null,null,null,null,null,null,null,null,null,null,null,"Yes"]
["South Africa","Anglo South Africa (Pty) Ltd",null,null,null,null,null,null,null,null,null,null,"Yes"]
["South Africa","Anglo South Africa Capital (Pty) Ltd",null,null,null,null,null,null,null,null,null,null,"Yes"]
["South Africa","Anseld Holdings Proprietary Limited",null,null,null,null,null,null,null,null,null,null,null,"Yes"]
["South Africa","Asambeni Mining Proprietary Limited",null,null,null,null,null,null,null,null,null,null,null,"Yes"]
["South Africa","Atomatic Trading (Pty) Ltd",null,null,null,null,"Yes"]
["South Africa","Balgo Nominees (Pty) Ltd",null,null,null,null,null,null,null,null,null,null,"Yes"]
["South Africa","Blinkwater Farms 244KR (Pty) Ltd",null,null,null,null,null,null,null,null,null,null,null,"Yes"]
["South Africa","Butsanani Energy Investment Holdings (Pty) Ltd",null,null,null,null,null,null,null,null,null,null,"Yes"]
["South Africa","Colliery Training College (Pty) Ltd",null,null,null,null,null,null,"Yes"]
["South Africa","DBCM Holdings (Pty) Ltd",null,null,null,null,null,null,null,null,null,null,"Yes"]
["South Africa","De Beers Consolidated Mines (Pty) Ltd ",null,null,null,"Yes"]
["South Africa","De Beers Group Services (Pty) Ltd",null,null,null,null,null,"Yes"]
["South Africa","De Beers Marine (Pty) Ltd",null,null,null,"Yes"]
["South Africa","De Beers Matlafalang Business Development (Pty) Ltd",null,null,null,null,null,null,null,null,null,null,null,"Yes"]
["South Africa","De Beers Sightholder Sales South Africa (Pty) Ltd",null,null,null,null,"Yes","Yes"]
["South Africa","Dido Nominees (Pty) Ltd",null,null,null,null,null,null,null,null,null,null,null,"Yes"]
["South Africa","Element Six (Production) (Pty) Ltd",null,null,null,"Yes"]
["South Africa","Element Six South Africa (Pty) Ltd",null,null,null,null,null,null,null,null,null,null,null,"Yes"]
["South Africa","Element Six Technologies (Pty) Ltd",null,null,null,null,null,null,null,null,null,null,null,"Yes"]
["South Africa","Ingagane Colliery (Pty) Ltd",null,null,null,null,null,null,null,null,null,null,null,"Yes"]
["South Africa","KIO Investments Holdings (Pty) Ltd",null,null,null,null,null,null,null,null,null,null,"Yes"]
["South Africa","Kumba BSP Trust",null,null,null,null,null,null,null,null,null,null,"Yes"]
["South Africa","Kumba Iron Ore Limited",null,null,null,null,null,null,null,null,null,null,"Yes"]
["South Africa","Longboat (Pty) Ltd",null,null,null,null,null,null,null,null,null,null,"Yes"]
["South Africa","Mafube Coal Mining (Pty) Ltd",null,null,null,"Yes"]
["South Africa","Main Street 1252 (Pty) Ltd",null,null,null,null,null,null,null,null,null,null,"Yes"]
["South Africa","Marikana Ferrochrome Limited",null,null,null,null,null,null,null,null,null,null,null,"Yes"]
["South Africa","Marikana Minerals (Pty) Ltd",null,null,null,null,null,null,null,null,null,null,"Yes"]
["South Africa","Matthey Rustenburg Refiners(Pty)Ltd",null,null,null,null,null,null,null,null,null,null,null,"Yes"]
["South Africa","Micawber 146 (Pty) Ltd",null,null,null,null,null,null,null,null,null,null,null,null,"Yes","Not managed"]
["South Africa","Mogalakwena Platinum Mines",null,null,null,null,null,null,null,null,null,null,null,"Yes"]
["South Africa","Newshelf 1316 (Pty) Ltd",null,null,null,null,null,null,null,null,null,null,null,"Yes"]
["South Africa","Newshelf 480 (Pty) Ltd",null,null,null,null,null,"Yes"]
["South Africa","Norsand Holdings (Pty) Ltd",null,null,null,null,"Yes"]
["South Africa","Peruke (Pty) Ltd","Yes"]
["South Africa","Platmed(Pty)Ltd",null,null,null,null,null,"Yes"]
["South Africa","Platmed Properties (Pty) Ltd",null,null,null,null,null,"Yes"]
["South Africa","R A Gilbert (Pty) Ltd",null,null,null,null,null,"Yes"]
["South Africa","Resident Nominees (Pty) Ltd",null,null,null,null,null,null,null,null,null,null,null,"Yes"]
["South Africa","Rietvlei Mining Company (Pty) Ltd",null,null,null,"Yes"]
["South Africa","Rustenburg Platinum Mines Limited",null,null,null,"Yes"]
["South Africa","Sibelo Resource Development (Pty) Ltd",null,null,null,null,null,null,null,null,null,null,null,"Yes"]
["South Africa","Sishen Iron Ore Company (Pty) Ltd",null,null,null,"Yes"]
["South Africa","Spectrem Air (Pty) Ltd",null,null,null,null,null,null,null,null,null,null,null,null,"Yes","Conducting airborne geophysical surveys"]
["South Africa","Springfield Collieries Limited",null,null,null,null,null,null,null,null,null,null,null,"Yes"]
["South Africa","Tenon Investment Holdings (Pty) Ltd",null,null,null,null,null,null,null,null,null,null,"Yes"]
["South Africa","The Village of Cullinan (Pty) Ltd",null,null,null,null,null,null,null,null,null,null,null,"Yes"]
["South Africa","Vergelegen Wine Estate (Pty) Ltd",null,null,null,null,null,null,null,null,null,null,"Yes"]
["South Africa","Vergelegen Wines (Pty) Ltd",null,null,null,"Yes",null,"Yes"]
["South Africa","Whiskey Creek Management Services (Pty) Ltd",null,null,null,null,null,"Yes"]
["South Africa","Precious Metals Refiners Proprietary Limited",null,null,null,null,null,null,null,null,null,null,null,"Yes"]
["South Africa","Rustenburg Base Metals Refiners Proprietary Limited",null,null,null,null,null,null,null,null,null,null,null,"Yes"]
["South Africa","ACRO (Hanise) (Pty) Ltd",null,null,null,null,null,null,null,null,null,null,null,"Yes"]
["South Africa","Almenta 127 (Pty) Ltd",null,null,null,null,null,null,null,null,null,null,null,"Yes"]
["South Africa","Amcoal Collieries Recruiting Organisation (Pty) Limited",null,null,null,null,null,"Yes"]
["South Africa","Ampros (Pty) Ltd",null,null,null,null,null,null,null,null,null,null,null,null,"Yes","Holder of property"]
["South Africa","Chamfron Limited",null,null,null,null,null,null,null,null,null,null,null,"Yes"]
["South Africa","Fermain Nominees (Pty) Ltd",null,null,null,null,null,null,null,null,null,null,null,"Yes"]
["South Africa","High Ground Investments Limited",null,null,null,null,null,"Yes",null,null,null,null,null,"Yes"]
["South Africa","Lansan Investment Holdings (Pty) Ltd",null,null,null,null,null,null,null,null,null,null,"Yes"]
["South Africa","De Beers Marine Proprietary Limited - Namibia Branch",null,null,null,null,null,null,null,null,null,null,null,null,"Yes","Support activities for Prospecting and Mining activities"]
["Sweden","Element Six AB",null,null,null,"Yes",null,"Yes"]
["Switzerland","De Beers plc - Swiss branch",null,null,null,null,null,null,null,null,null,null,"Yes"]
["Switzerland","De Beers UK Ltd - Swiss PE",null,null,null,null,null,"Yes"]
["Switzerland","Element Six SA",null,null,null,null,"Yes"]
["Switzerland","PGI SA",null,null,null,null,null,null,null,null,null,null,null,null,"Yes","Consultancy, market research and promotion"]
["Taiwan, Province of China[a]","De Beers Jewellers Taiwan Branch",null,null,null,null,"Yes"]
["Tanzania, United Republic of","Ambase Prospecting (Tanzania) (Pty) Ltd",null,null,null,null,null,null,null,null,null,null,null,"Yes"]
["United Arab Emirates","Element Six Ltd Dubai Branch",null,null,null,null,"Yes"]
["United Arab Emirates","De Beers DMCC",null,null,null,null,"Yes"]
["United Kingdom","A.R.H. Investments Limited",null,null,null,null,null,null,null,null,null,null,"Yes"]
["United Kingdom","A.R.H. Limited",null,null,null,null,null,null,null,null,null,null,null,"Yes"]
["United Kingdom","Ambras Holdings Limited",null,null,null,null,null,null,null,null,null,null,"Yes"]
["United Kingdom","Ammin Coal Holdings Limited",null,null,null,null,null,null,null,null,null,null,"Yes"]
["United Kingdom","Anglo African Exploration Holdings Limited",null,null,null,null,null,null,null,null,null,null,"Yes"]
["United Kingdom","Anglo American (London)",null,null,null,null,null,null,null,"Yes"]
["United Kingdom","Anglo American Technical & Sustainability Limited",null,null,null,null,null,"Yes"]
["United Kingdom","Anglo American Technical & Sustainability Services Ltd",null,null,null,null,null,"Yes"]
["United Kingdom","Anglo American (TIIL) Investments Limited",null,null,null,null,null,null,null,null,null,null,null,"Yes"]
["United Kingdom","Anglo American Amcoll (UK) Limited",null,null,null,null,null,null,null,null,null,null,"Yes"]
["United Kingdom","Anglo American Australia Investments Limited",null,null,null,null,null,null,null,null,null,null,"Yes"]
["United Kingdom","Anglo American Buttercup Company Limited",null,null,null,null,null,null,null,null,null,null,"Yes"]
["United Kingdom","Anglo American Capital Australia Limited",null,null,null,null,null,null,null,null,null,null,null,"Yes"]
["United Kingdom","Anglo American Capital Overseas Limited",null,null,null,null,null,null,null,"Yes"]
["United Kingdom","Anglo American Capital plc",null,null,null,null,null,null,null,"Yes"]
["United Kingdom","Anglo American Chile Investments (UK) Limited",null,null,null,null,null,null,null,null,null,null,"Yes"]
["United Kingdom","Anglo American Clarent (UK) Limited",null,null,null,null,null,null,null,null,null,null,"Yes"]
["United Kingdom","Anglo American CMC Holdings Limited",null,null,null,null,null,null,null,null,null,null,"Yes"]
["United Kingdom","Anglo American Corporate Secretary Limited",null,null,null,null,null,"Yes"]
["United Kingdom","Anglo American Diamond Holdings Limited",null,null,null,null,null,null,null,null,null,null,"Yes"]
["United Kingdom","Anglo American Exploration Colombia Limited",null,null,null,null,null,null,null,null,null,null,"Yes"]
["United Kingdom","Anglo American Exploration Overseas Holdings Limited",null,null,null,null,null,null,null,null,null,null,"Yes"]
["United Kingdom","Anglo American Ferrous Investments (Overseas) Limited",null,null,null,null,null,null,null,null,null,null,"Yes"]
["United Kingdom","Anglo American Ferrous Investments Limited",null,null,null,null,null,null,null,null,null,null,"Yes"]
["United Kingdom","Anglo American Finance (UK) Limited",null,null,null,null,null,null,null,"Yes",null,null,"Yes"]
["United Kingdom","Anglo American Finance Overseas Holdings Limited",null,null,null,null,null,null,null,null,null,null,"Yes"]
["United Kingdom","Anglo American Finland Holdings 1 Limited",null,null,null,null,null,null,null,null,null,null,"Yes"]
["United Kingdom","Anglo American Finland Holdings 2 Limited",null,null,null,null,null,null,null,null,null,null,"Yes"]
["United Kingdom","Anglo American Group Foundation",null,null,null,null,null,null,null,null,null,null,null,"Yes"]
["United Kingdom","Anglo American Hermitage Limited",null,null,null,null,null,null,null,null,null,null,"Yes"]
["United Kingdom","Anglo American Holdings Limited",null,null,null,null,null,null,null,null,null,null,"Yes"]
["United Kingdom","Anglo American International Holdings Limited",null,null,null,null,null,null,null,null,null,null,"Yes"]
["United Kingdom","Anglo American Investments (UK) Limited",null,null,null,null,null,null,null,null,null,null,"Yes"]
["United Kingdom","Anglo American Liberia Holdings Limited",null,null,null,null,null,null,null,null,null,null,"Yes"]
["United Kingdom","Anglo American Marketing Limited",null,null,null,null,"Yes"]
["United Kingdom","Anglo American Medical Plan Limited",null,null,null,null,null,null,null,null,null,null,null,"Yes"]
["United Kingdom","Anglo American Midway Investment Limited",null,null,null,null,null,null,null,null,null,null,"Yes"]
["United Kingdom","Anglo American Plc",null,null,null,null,null,"Yes",null,null,null,null,"Yes"]
["United Kingdom","Anglo American PNG Holdings Limited",null,null,null,null,null,null,null,null,null,null,"Yes"]
["United Kingdom","Anglo American Prefco Limited",null,null,null,null,null,null,null,"Yes",null,null,"Yes"]
["United Kingdom","Anglo American REACH Limited",null,null,null,null,null,"Yes"]
["United Kingdom","Anglo American Services (UK) Ltd",null,null,null,null,null,"Yes",null,"Yes",null,null,"Yes"]
["United Kingdom","Anglo American Services Overseas Limited",null,null,null,null,null,"Yes"]
["United Kingdom","Anglo Australia Investments Limited",null,null,null,null,null,null,null,null,null,null,"Yes"]
["United Kingdom","Anglo Base Metals Marketing Limited",null,null,null,null,"Yes"]
["United Kingdom","Anglo Coal International Limited",null,null,null,null,null,null,null,null,null,null,"Yes"]
["United Kingdom","Anglo Diamond Investments Limited",null,null,null,null,null,null,null,null,null,null,"Yes"]
["United Kingdom","Anglo Iron Ore Investments Limited",null,null,null,null,null,null,null,null,null,null,"Yes"]
["United Kingdom","Anglo Loma Investments Limited",null,null,null,null,null,null,null,null,null,null,"Yes"]
["United Kingdom","Anglo Operations (International) Limited",null,null,null,null,null,null,null,null,null,null,"Yes"]
["United Kingdom","Anglo Peru Investments Limited",null,null,null,null,null,null,null,null,null,null,"Yes"]
["United Kingdom","Anglo Platinum Marketing Limited",null,null,null,null,"Yes"]
["United Kingdom","Anglo Quellaveco Limited",null,null,null,null,null,null,null,null,null,null,"Yes"]
["United Kingdom","Anglo UK Pension Trustee Limited",null,null,null,null,null,null,null,null,null,null,null,"Yes"]
["United Kingdom","Anglo Venezuela Investments Limited",null,null,null,null,null,null,null,"Yes"]
["United Kingdom","Anmercosa Finance Limited",null,null,null,null,null,"Yes"]
["United Kingdom","The Diamond Trading Company Limited",null,null,null,null,null,null,null,null,null,null,null,"Yes"]
["United Kingdom","Aval Holdings Limited",null,null,null,null,null,null,null,null,null,null,"Yes"]
["United Kingdom","Birchall Gardens LLP",null,null,null,null,null,null,null,null,null,null,null,null,"Yes","Property Investment"]
["United Kingdom","Cencan plc",null,null,null,null,null,null,null,null,null,null,"Yes"]
["United Kingdom","Charterhouse CAP Ltd",null,null,"Yes",null,"Yes"]
["United Kingdom","Cheviot Holdings Limited",null,null,null,null,null,null,null,null,null,null,"Yes"]
["United Kingdom","De Beers Exploration Holdings Limited",null,null,null,null,null,null,null,null,null,null,"Yes"]
["United Kingdom","De Beers Holdings Investments Limited",null,null,null,null,null,null,null,null,null,null,"Yes"]
["United Kingdom","De Beers Intangibles Ltd",null,null,null,null,null,null,null,null,null,null,null,"Yes"]
["United Kingdom","De Beers Investments plc",null,null,null,null,null,null,null,null,null,null,"Yes"]
["United Kingdom","De Beers plc",null,null,null,null,null,null,null,null,null,null,"Yes"]
["United Kingdom","De Beers Trademarks Ltd",null,null,null,null,null,null,null,null,null,null,null,"Yes"]
["United Kingdom","De Beers UK Ltd","Yes","Yes",null,null,"Yes",null,null,null,null,null,"Yes"]
["United Kingdom","Ebbsfleet Property Limited ",null,null,null,null,null,null,null,null,null,null,null,null,"Yes","Holder of property"]
["United Kingdom","Element Six (Production) Ltd",null,null,null,null,null,null,null,null,null,null,null,null,"Yes","Holder of property"]
["United Kingdom","Element Six (UK) Ltd","Yes","Yes",null,null,null,"Yes",null,null,null,null,null,null,"Yes","Pension entity"]
["United Kingdom","Element Six Abrasive Holdings Limited",null,null,null,null,null,null,null,null,null,null,"Yes"]
["United Kingdom","Element Six Ltd",null,null,null,null,null,"Yes"]
["United Kingdom","Element Six Technologies Ltd",null,null,null,null,null,null,null,null,null,null,null,"Yes"]
["United Kingdom","Element Six Holding Limited",null,null,null,null,null,null,null,null,null,null,"Yes"]
["United Kingdom","Ferro Nickel Marketing Limited",null,null,null,null,"Yes","Yes"]
["United Kingdom","Forevermark Limited",null,"Yes",null,null,"Yes","Yes",null,null,null,null,"Yes"]
["United Kingdom","IIDGR (UK) Limited",null,null,null,"Yes"]
["United Kingdom","IIDGR Holdings Limited",null,null,null,null,null,null,null,null,null,null,"Yes"]
["United Kingdom","Inglewood Holdings Limited",null,null,null,null,null,null,null,null,null,null,"Yes"]
["United Kingdom","Kumba International Trading Limited",null,null,null,null,"Yes",null,null,null,null,null,"Yes"]
["United Kingdom","Minorco Overseas Holdings Limited",null,null,null,null,null,null,null,null,null,null,"Yes"]
["United Kingdom","Minorco Peru Holdings Limited",null,null,null,null,null,null,null,null,null,null,"Yes"]
["United Kingdom","Minpress Investments Limited",null,null,null,null,null,null,null,null,null,null,"Yes"]
["United Kingdom","Northfleet Property LLP",null,null,null,null,null,null,null,null,null,null,null,null,"Yes","Holder of property"]
["United Kingdom","Reunion Group Limited",null,null,null,null,null,"Yes"]
["United Kingdom","Reunion Mining Limited",null,null,null,null,null,null,null,null,null,null,"Yes"]
["United Kingdom","Rhoanglo Trustees Limited",null,null,null,null,null,null,null,null,null,null,null,"Yes"]
["United Kingdom","Riverbank Investments Ltd",null,null,null,null,null,null,null,null,null,null,"Yes"]
["United Kingdom","Security Nominees Limited",null,null,null,null,null,null,null,null,null,null,null,"Yes"]
["United Kingdom","Swanscombe Developments LLP",null,null,null,null,null,null,null,null,null,null,null,null,"Yes","Holder of property"]
["United Kingdom","Gemfair Limited",null,null,null,null,null,null,null,null,null,null,null,"Yes"]
["United Kingdom","Anglo American Overseas Limited",null,null,null,null,null,null,null,null,null,null,"Yes"]
["United Kingdom","Anglo South American Investments Limited",null,null,null,null,null,null,null,null,null,null,"Yes"]
["United Kingdom","Lightbox Jewellery Limited",null,null,null,null,null,null,null,null,null,null,"Yes"]
["United Kingdom","De Beers Centenary Limited",null,null,null,null,null,null,null,null,null,null,"Yes"]
["United Kingdom","De Beers Jewellers Limited",null,null,null,null,"Yes"]
["United Kingdom","De Beers Jewellers Trade Mark Limited",null,null,null,null,"Yes"]
["United Kingdom","De Beers Jewellers UK Limited",null,null,null,null,"Yes"]
["United Kingdom","De Beers India Holdings Limited",null,null,null,null,null,null,null,null,null,null,"Yes"]
["United Kingdom","Anglo American (London) 2",null,null,null,null,null,null,null,"Yes"]
["United Kingdom","Anglo American 2005 Limited",null,null,null,null,null,null,null,"Yes"]
["United Kingdom","Anglo American Capital International Limited",null,null,null,null,null,null,null,"Yes"]
["United Kingdom","Anglo American Farms (UK) Limited",null,null,null,null,null,null,null,null,null,null,null,"Yes"]
["United Kingdom","Anglo American Ferrous 2",null,null,null,null,null,null,null,null,null,null,null,"Yes"]
["United Kingdom","Anglo American Global Finance Limited",null,null,null,null,null,null,null,"Yes"]
["United Kingdom","Anglo American Investments (NA) Limited",null,null,null,null,null,null,null,null,null,null,"Yes"]
["United Kingdom","Anglo American Michiquillay Peru Limited",null,null,null,null,null,null,null,null,null,null,"Yes"]
["United Kingdom","Anglo American Representative Offices Limited",null,null,null,null,null,"Yes"]
["United Kingdom","Anglo American Venezuela Corporation Limited",null,null,null,null,null,null,null,null,null,null,"Yes"]
["United Kingdom","Anglo Coal Holdings Limited",null,null,null,null,null,null,null,null,null,null,"Yes"]
["United Kingdom","Anglo Coal Overseas Services Limited",null,null,null,null,null,null,null,null,null,null,null,"Yes"]
["United Kingdom","Anmercosa Pension Trustees Limited",null,null,null,null,null,null,null,null,null,null,null,"Yes"]
["United Kingdom","Anmercosa Sales Limited",null,null,null,null,null,null,null,null,null,null,null,"Yes"]
["United Kingdom","Firecrest Investments Limited",null,null,null,null,null,null,null,null,null,null,null,"Yes"]
["United Kingdom","Mallord Properties Limited",null,null,null,null,null,null,null,null,null,null,null,"Yes"]
["United Kingdom","Neville Street Limited",null,null,null,null,null,null,null,null,null,null,null,"Yes"]
["United Kingdom","Anglo American Corporation de Chile Holdings Limited",null,null,null,null,null,null,null,null,null,null,"Yes"]
["United Kingdom","Anglo American Exploration (Philippines) B.V.",null,null,null,null,null,null,null,null,null,null,"Yes"]
["United Kingdom","Anglo American Exploration B.V.",null,null,null,null,null,null,null,null,null,null,"Yes"]
["United Kingdom","Anglo American International B.V.",null,null,null,null,null,null,null,null,null,null,"Yes"]
["United Kingdom","Anglo American International Limited",null,null,null,null,null,null,null,null,null,null,"Yes"]
["United Kingdom","Anglo American Netherlands B.V.",null,null,null,null,null,null,null,null,null,null,"Yes"]
["United Kingdom","Anglo Operations (Netherlands) B.V.",null,null,null,null,null,null,null,null,null,null,"Yes"]
["United Kingdom","De Beers Centenary AG",null,null,null,null,null,null,null,"Yes",null,null,"Yes"]
["United Kingdom","Delibes Holdings Limited",null,null,null,null,null,null,null,null,null,null,"Yes"]
["United Kingdom","Erabas B.V.",null,null,null,null,null,null,null,null,null,null,"Yes"]
["United Kingdom","Highbirch Ltd",null,null,null,null,null,null,null,null,null,null,"Yes"]
["United Kingdom","Loma de Niquel Holdings B.V.",null,null,null,null,null,null,null,null,null,null,"Yes"]
["United Kingdom","Loma de Niquel Holdings Limited",null,null,null,null,null,null,null,null,null,null,"Yes"]
["United Kingdom","Minorco Exploration (Indonesia) B.V.",null,null,null,null,null,null,null,null,null,null,"Yes"]
["United Kingdom","Scallion Limited",null,null,null,null,null,null,null,null,null,null,"Yes"]
["United Kingdom","Anglo American (TIH) B.V.",null,null,null,null,null,null,null,null,null,null,"Yes"]
["United Kingdom","Element Six Technologies Holding Ltd",null,null,null,null,null,null,null,null,null,null,"Yes"]
["United States of America","Anglo American Exploration (USA), Inc.",null,null,null,null,null,null,null,null,null,null,"Yes"]
["United States of America","Anglo American US Holdings Inc",null,null,null,null,null,null,null,null,null,null,"Yes"]
["United States of America","Element Six Technologies U.S. Corporation",null,null,null,"Yes"]
["United States of America","Element Six US Corporation",null,null,null,null,"Yes"]
["United States of America","Element Six Technologies (OR) Corp.",null,null,null,null,null,null,null,null,null,null,null,"Yes"]
["United States of America","Forevermark US, Inc.",null,null,null,null,"Yes","Yes"]
["United States of America","International Institute of Diamond Valuation Inc.",null,null,null,null,"Yes","Yes"]
["United States of America","Platinum Guild International (U.S.A.) Jewelry Inc.",null,null,null,null,null,null,null,null,null,null,null,null,"Yes","Consultancy, market research and promotion"]
["United States of America","De Beers Jewellers US, Inc.",null,null,null,null,"Yes"]
["United States of America","Element Six Technologies (Oregon) Corp.","Yes",null,null,"Yes"]
["United States of America","Big Hill, LLC",null,null,null,null,null,null,null,null,null,null,"Yes"]
["Venezuela (Bolivarian Republic of)","Minera Loma de Niquel C.A",null,null,null,null,null,null,null,null,null,null,"Yes"]
["Virgin Islands (British)","Peregrine Botswana (BVI) Ltd",null,null,null,null,null,null,null,null,null,null,"Yes"]
["Virgin Islands (British)","Anglo American Services (International) Limited",null,null,null,null,null,null,null,null,null,null,"Yes"]
["Virgin Islands (British)","De Beers Angola Investments Limited",null,null,null,null,null,null,null,null,null,null,"Yes"]
["Virgin Islands (British)","De Beers Angola Prospecting Pty Ltd",null,null,null,null,null,null,null,null,null,null,"Yes"]
["Zambia","Anglo Exploration (Zambia) Limited",null,null,null,null,null,null,null,null,null,null,null,"Yes","Yes","Exploration"]
["Zimbabwe","Amzim Holdings Limited",null,null,null,null,null,null,null,null,null,null,"Yes"]
["Zimbabwe","Anglo American Corporation Zimbabwe Limited",null,null,null,null,null,null,null,null,null,null,"Yes"]
["Zimbabwe","Broadlands Park Limited",null,null,null,null,null,null,null,null,null,null,"Yes"]
["Zimbabwe","Southridge Limited",null,null,null,null,null,"Yes"]
["Zimbabwe","Unki Mines (Private) Limited",null,null,null,"Yes"]

{"sheet":"TemplateMapXml","index":2,"n_rows":0,"n_cols":0,"rows_kept":0,"cut":false,"hidden":true,"merged":[]}

{"sheet":"Table1Map","index":3,"n_rows":47,"n_cols":7,"rows_kept":47,"cut":false,"hidden":true,"merged":[]}
["Question #","XsdElement","ColumnOffset","RowOffset","Button","Lookup","Don't use links"]
[1.1000000000000001,"CBC_OECD;CbcBody;CbcReports;ResCountryCode",null,null,null,"ListCountryReverse",true]
[1.2,"CBC_OECD;CbcBody;CbcReports;Summary;Revenues;Unrelated"]
[1.3,"CBC_OECD;CbcBody;CbcReports;Summary;Revenues;Related"]
[1.4,"CBC_OECD;CbcBody;CbcReports;Summary;Revenues;Total"]
[1.5,"CBC_OECD;CbcBody;CbcReports;Summary;ProfitOrLoss"]
[1.6,"CBC_OECD;CbcBody;CbcReports;Summary;TaxPaid"]
[1.7,"CBC_OECD;CbcBody;CbcReports;Summary;TaxAccrued"]
[1.8,"CBC_OECD;CbcBody;CbcReports;Summary;Capital"]
[1.9,"CBC_OECD;CbcBody;CbcReports;Summary;Earnings"]
["1.10","CBC_OECD;CbcBody;CbcReports;Summary;NbEmployees"]
[1.1100000000000001,"CBC_OECD;CbcBody;CbcReports;Summary;Assets"]
["Currency","CBC_OECD;CbcBody;CbcReports;Summary;Revenues;Unrelated;currCode",null,null,null,"ListCurrencyReverse"]
["2.1","CBC_OECD;CbcBody;CbcReports;ResCountryCode",null,null,null,"ListCountryReverse",true]
["2.2","CBC_OECD;CbcBody;CbcReports;ConstEntities;ConstEntity;Name"]
["2.3","CBC_OECD;CbcBody;CbcReports;ConstEntities;ConstEntity;ResCountryCode",null,null,null,"ListCountryReverse"]
["2.4","CBC_OECD;CbcBody;CbcReports;ConstEntities;IncorpCountryCode",null,null,null,"ListCountryReverse"]
["2.5","CBC_OECD;CbcBody;CbcReports;ConstEntities;ConstEntity;TIN"]
["2.6","CBC_OECD;CbcBody;CbcReports;ConstEntities;ConstEntity;TIN;issuedBy",null,null,null,"ListCountryReverse"]
["2.7","CBC_OECD;CbcBody;CbcReports;ConstEntities;ConstEntity;IN"]
["2.8","CBC_OECD;CbcBody;CbcReports;ConstEntities;ConstEntity;IN;issuedBy",null,null,null,"ListCountryReverse"]
["2.9","CBC_OECD;CbcBody;CbcReports;ConstEntities;ConstEntity;IN;INType"]
["2.10","CBC_OECD;CbcBody;CbcReports;ConstEntities;ConstEntity;Address;legalAddressType"]
["2.11","CBC_OECD;CbcBody;CbcReports;ConstEntities;ConstEntity;Address;AddressFix;BuildingIdentifier"]
["2.12","CBC_OECD;CbcBody;CbcReports;ConstEntities;ConstEntity;Address;AddressFix;Street"]
["2.13","CBC_OECD;CbcBody;CbcReports;ConstEntities;ConstEntity;Address;AddressFix;SuiteIdentifier"]
["2.14","CBC_OECD;CbcBody;CbcReports;ConstEntities;ConstEntity;Address;AddressFix;FloorIdentifier"]
["2.15","CBC_OECD;CbcBody;CbcReports;ConstEntities;ConstEntity;Address;AddressFix;DistrictName"]
["2.16","CBC_OECD;CbcBody;CbcReports;ConstEntities;ConstEntity;Address;AddressFix;POB"]
["2.17","CBC_OECD;CbcBody;CbcReports;ConstEntities;ConstEntity;Address;AddressFix;PostCode"]
["2.18","CBC_OECD;CbcBody;CbcReports;ConstEntities;ConstEntity;Address;AddressFix;City"]
["2.19","CBC_OECD;CbcBody;CbcReports;ConstEntities;ConstEntity;Address;AddressFix;CountrySubentity"]
["2.20","CBC_OECD;CbcBody;CbcReports;ConstEntities;ConstEntity;Address;CountryCode",null,null,null,"ListCountryReverse"]
["2.21","CBC_OECD;CbcBody;CbcReports;ConstEntities;BizActivities"]
["2.22","CBC_OECD;CbcBody;CbcReports;ConstEntities;BizActivities",1]
["2.23","CBC_OECD;CbcBody;CbcReports;ConstEntities;BizActivities",2]
["2.24","CBC_OECD;CbcBody;CbcReports;ConstEntities;BizActivities",3]
["2.25","CBC_OECD;CbcBody;CbcReports;ConstEntities;BizActivities",4]
["2.26","CBC_OECD;CbcBody;CbcReports;ConstEntities;BizActivities",5]
["2.27","CBC_OECD;CbcBody;CbcReports;ConstEntities;BizActivities",6]
["2.28","CBC_OECD;CbcBody;CbcReports;ConstEntities;BizActivities",7]
["2.29","CBC_OECD;CbcBody;CbcReports;ConstEntities;BizActivities",8]
["2.30","CBC_OECD;CbcBody;CbcReports;ConstEntities;BizActivities",9]
["2.31","CBC_OECD;CbcBody;CbcReports;ConstEntities;BizActivities",10]
["2.32","CBC_OECD;CbcBody;CbcReports;ConstEntities;BizActivities",11]
["2.33","CBC_OECD;CbcBody;CbcReports;ConstEntities;BizActivities",12]
["2.34","CBC_OECD;CbcBody;CbcReports;ConstEntities;OtherEntityInfo"]

{"sheet":"Lists","index":4,"n_rows":252,"n_cols":26,"rows_kept":252,"cut":false,"hidden":true,"merged":[]}
["ReportType",null,"Code","Country",null,"Country","Code",null,"Language","Code",null,"Currency","Code",null,"MessageType","Code",null,"DocumentType","Code",null,"BizActivityType","Index","Code",null,"Code","Currency"]
["CBC",null,"AD","Andorra",null,"Afghanistan","AF",null,"Abkhaz","AB",null,"UAE Dirham","AED",null,"The message contains new information","CBC401",null,"Resent Data","OECD0",null,"Research and Development",0,"CBC501",null,"AED","UAE Dirham"]
[null,null,"AE","United Arab Emirates",null,"Åland Islands","AX",null,"Afar","AA",null,"Afghani","AFN",null,"The message contains corrections for previously sent information","CBC402",null,"New Data","OECD1",null,"Holding or Managing intellectual property",1,"CBC502",null,"AFN","Afghani"]
["Boolean",null,"AF","Afghanistan",null,"Albania","AL",null,"Afrikaans","AF",null,"Lek","ALL",null,null,null,null,"Corrected Data","OECD2",null,"Purchasing or Procurement",2,"CBC503",null,"ALL","Lek"]
["Yes",null,"AG","Antigua and Barbuda",null,"Algeria","DZ",null,"Akan","AK",null,"Armenian Dram","AMD",null,"ReportingRole","Code",null,"Deletion of Data","OECD3",null,"Manufacturing or Production",3,"CBC504",null,"AMD","Armenian Dram"]
["No",null,"AI","Anguilla",null,"American Samoa","AS",null,"Albanian","SQ",null,"Netherlands Antillean Guilder","ANG",null,"Ultimate Parent Entity","CBC701",null,"Resent Test Data","OECD10",null,"Sales, Marketing or Distribution",4,"CBC505",null,"ANG","Netherlands Antillean Guilder"]
[null,null,"AL","Albania",null,"Andorra","AD",null,"Amharic","AM",null,"Kwanza","AOA",null,"Surrogate Parent Entity","CBC702",null,"New Test Data","OECD11",null,"Administrative, Management or Support Services",5,"CBC506",null,"AOA","Kwanza"]
[null,null,"AM","Armenia",null,"Angola","AO",null,"Arabic","AR",null,"Argentine Peso","ARS",null,"Local Filing","CBC703",null,"Corrected Test Data","OECD12",null,"Provision of Services to unrelated parties",6,"CBC507",null,"ARS","Argentine Peso"]
[null,null,"AO","Angola",null,"Anguilla","AI",null,"Aragonese","AN",null,"Australian Dollar","AUD",null,null,null,null,"Deletion of Test Data","OECD13",null,"Internal Group Finance",7,"CBC508",null,"AUD","Australian Dollar"]
[null,null,"AQ","Antarctica",null,"Antarctica","AQ",null,"Armenian","HY",null,"Aruban Florin","AWG",null,"AddressType",null,null,null,null,null,"Regulated Financial Services",8,"CBC509",null,"AWG","Aruban Florin"]
[null,null,"AR","Argentina",null,"Antigua and Barbuda","AG",null,"Assamese","AS",null,"Azerbaijanian Manat","AZN",null,"Business ","OECD303",null,null,null,null,"Insurance",9,"CBC510",null,"AZN","Azerbaijanian Manat"]
[null,null,"AS","American Samoa",null,"Argentina","AR",null,"Avaric","AV",null,"Convertible Mark","BAM",null,"Registered office ","OECD304",null,null,null,null,"Holding shares or other equity instruments",10,"CBC511",null,"BAM","Convertible Mark"]
[null,null,"AT","Austria",null,"Armenia","AM",null,"Avestan","AE",null,"Barbados Dollar","BBD",null,"Residential ","OECD302",null,null,null,null,"Dormant",11,"CBC512",null,"BBD","Barbados Dollar"]
[null,null,"AU","Australia",null,"Aruba","AW",null,"Aymara","AY",null,"Taka","BDT",null,"Residential or Business ","OECD301",null,null,null,null,"Other",12,"CBC513",null,"BDT","Taka"]
[null,null,"AW","Aruba",null,"Australia","AU",null,"Azerbaijani","AZ",null,"Bulgarian Lev","BGN",null,"Unspecified ","OECD305",null,null,null,null,null,null,null,null,"BGN","Bulgarian Lev"]
[null,null,"AX","Åland Islands",null,"Austria","AT",null,"Bambara","BM",null,"Bahraini Dinar","BHD",null,null,null,null,null,null,null,null,null,null,null,"BHD","Bahraini Dinar"]
[null,null,"AZ","Azerbaijan",null,"Azerbaijan","AZ",null,"Bashkir","BA",null,"Burundi Franc","BIF",null,"SummaryRef","Code",null,null,null,null,null,null,null,null,"BIF","Burundi Franc"]
[null,null,"BA","Bosnia and Herzegovina",null,"Bahamas","BS",null,"Basque","EU",null,"Bermudian Dollar","BMD",null,"Revenues - Unrelated","CBC601",null,null,null,null,null,null,null,null,"BMD","Bermudian Dollar"]
[null,null,"BB","Barbados",null,"Bahrain","BH",null,"Belarusian","BE",null,"Brunei Dollar","BND",null,"Revenues - Related","CBC602",null,null,null,null,null,null,null,null,"BND","Brunei Dollar"]
[null,null,"BD","Bangladesh",null,"Bangladesh","BD",null,"Bengali, Bangla","BN",null,"Boliviano","BOB",null,"Revenues - Total","CBC603",null,null,null,null,null,null,null,null,"BOB","Boliviano"]
[null,null,"BE","Belgium",null,"Barbados","BB",null,"Bihari","BH",null,"Mvdol","BOV",null,"Profit or Loss","CBC604",null,null,null,null,null,null,null,null,"BOV","Mvdol"]
[null,null,"BF","Burkina Faso",null,"Belarus","BY",null,"Bislama","BI",null,"Brazilian Real","BRL",null,"Tax Paid","CBC605",null,null,null,null,null,null,null,null,"BRL","Brazilian Real"]
[null,null,"BG","Bulgaria",null,"Belgium","BE",null,"Bosnian","BS",null,"Bahamian Dollar","BSD",null,"Tax Accrued","CBC606",null,null,null,null,null,null,null,null,"BSD","Bahamian Dollar"]
[null,null,"BH","Bahrain",null,"Belize","BZ",null,"Breton","BR",null,"Ngultrum","BTN",null,"Capital","CBC607",null,null,null,null,null,null,null,null,"BTN","Ngultrum"]
[null,null,"BI","Burundi",null,"Benin","BJ",null,"Bulgarian","BG",null,"Pula","BWP",null,"Earnings","CBC608",null,null,null,null,null,null,null,null,"BWP","Pula"]
[null,null,"BJ","Benin",null,"Bermuda","BM",null,"Burmese","MY",null,"Belarussian Ruble","BYR",null,"Number of Employees","CBC609",null,null,null,null,null,null,null,null,"BYR","Belarussian Ruble"]
[null,null,"BL","Saint Barthélemy",null,"Bhutan","BT",null,"Catalan","CA",null,"Belize Dollar","BZD",null,"Assets","CBC610",null,null,null,null,null,null,null,null,"BZD","Belize Dollar"]
[null,null,"BM","Bermuda",null,"Bolivia (Plurinational State of)","BO",null,"Chamorro","CH",null,"Canadian Dollar","CAD",null,null,null,null,null,null,null,null,null,null,null,"CAD","Canadian Dollar"]
[null,null,"BN","Brunei Darussalam",null,"Bonaire, Sint Eustatius and Saba","BQ",null,"Chechen","CE",null,"Congolese Franc","CDF",null,null,null,null,null,null,null,null,null,null,null,"CDF","Congolese Franc"]
[null,null,"BO","Bolivia (Plurinational State of)",null,"Bosnia and Herzegovina","BA",null,"Chichewa, Chewa, Nyanja","NY",null,"WIR Euro","CHE",null,null,null,null,null,null,null,null,null,null,null,"CHE","WIR Euro"]
[null,null,"BQ","Bonaire, Sint Eustatius and Saba",null,"Botswana","BW",null,"Chinese","ZH",null,"Swiss Franc","CHF",null,null,null,null,null,null,null,null,null,null,null,"CHF","Swiss Franc"]
[null,null,"BR","Brazil",null,"Bouvet Island","BV",null,"Chuvash","CV",null,"WIR Franc","CHW",null,null,null,null,null,null,null,null,null,null,null,"CHW","WIR Franc"]
[null,null,"BS","Bahamas",null,"Brazil","BR",null,"Cornish","KW",null,"Unidades de fomento","CLF",null,null,null,null,null,null,null,null,null,null,null,"CLF","Unidades de fomento"]
[null,null,"BT","Bhutan",null,"British Indian Ocean Territory","IO",null,"Corsican","CO",null,"Chilean Peso","CLP",null,null,null,null,null,null,null,null,null,null,null,"CLP","Chilean Peso"]
[null,null,"BV","Bouvet Island",null,"Brunei Darussalam","BN",null,"Cree","CR",null,"Yuan Renminbi","CNY",null,null,null,null,null,null,null,null,null,null,null,"CNY","Yuan Renminbi"]
[null,null,"BW","Botswana",null,"Bulgaria","BG",null,"Croatian","HR",null,"Colombian Peso","COP",null,null,null,null,null,null,null,null,null,null,null,"COP","Colombian Peso"]
[null,null,"BY","Belarus",null,"Burkina Faso","BF",null,"Czech","CS",null,"Unidad de Valor Real","COU",null,null,null,null,null,null,null,null,null,null,null,"COU","Unidad de Valor Real"]
[null,null,"BZ","Belize",null,"Burundi","BI",null,"Danish","DA",null,"Costa Rican Colon","CRC",null,null,null,null,null,null,null,null,null,null,null,"CRC","Costa Rican Colon"]
[null,null,"CA","Canada",null,"Cabo Verde","CV",null,"Divehi, Dhivehi, Maldivian","DV",null,"Peso Convertible","CUC",null,null,null,null,null,null,null,null,null,null,null,"CUC","Peso Convertible"]
[null,null,"CC","Cocos (Keeling) Islands",null,"Cambodia","KH",null,"Dutch","NL",null,"Cuban Peso","CUP",null,null,null,null,null,null,null,null,null,null,null,"CUP","Cuban Peso"]
[null,null,"CD","Congo (Democratic Republic of the)",null,"Cameroon","CM",null,"Dzongkha","DZ",null,"Cape Verde Escudo","CVE",null,null,null,null,null,null,null,null,null,null,null,"CVE","Cape Verde Escudo"]
[null,null,"CF","Central African Republic",null,"Canada","CA",null,"English","EN",null,"Czech Koruna","CZK",null,null,null,null,null,null,null,null,null,null,null,"CZK","Czech Koruna"]
[null,null,"CG","Congo",null,"Cayman Islands","KY",null,"Esperanto","EO",null,"Djibouti Franc","DJF",null,null,null,null,null,null,null,null,null,null,null,"DJF","Djibouti Franc"]
[null,null,"CH","Switzerland",null,"Central African Republic","CF",null,"Kasuto Hylian","HL",null,"Danish Krone","DKK",null,null,null,null,null,null,null,null,null,null,null,"DKK","Danish Krone"]
[null,null,"CI","Côte d'Ivoire",null,"Chad","TD",null,"Sarinilli Hylian","HL",null,"Dominican Peso","DOP",null,null,null,null,null,null,null,null,null,null,null,"DOP","Dominican Peso"]
[null,null,"CK","Cook Islands",null,"Chile","CL",null,"Estonian","ET",null,"Algerian Dinar","DZD",null,null,null,null,null,null,null,null,null,null,null,"DZD","Algerian Dinar"]
[null,null,"CL","Chile",null,"China","CN",null,"Ewe","EE",null,"Egyptian Pound","EGP",null,null,null,null,null,null,null,null,null,null,null,"EGP","Egyptian Pound"]
[null,null,"CM","Cameroon",null,"Christmas Island","CX",null,"Faroese","FO",null,"Nakfa","ERN",null,null,null,null,null,null,null,null,null,null,null,"ERN","Nakfa"]
[null,null,"CN","China",null,"Cocos (Keeling) Islands","CC",null,"Fijian","FJ",null,"Ethiopian Birr","ETB",null,null,null,null,null,null,null,null,null,null,null,"ETB","Ethiopian Birr"]
[null,null,"CO","Colombia",null,"Colombia","CO",null,"Finnish","FI",null,"Euro","EUR",null,null,null,null,null,null,null,null,null,null,null,"EUR","Euro"]
[null,null,"CR","Costa Rica",null,"Comoros","KM",null,"French","FR",null,"Fiji Dollar","FJD",null,null,null,null,null,null,null,null,null,null,null,"FJD","Fiji Dollar"]
[null,null,"CU","Cuba",null,"Congo","CG",null,"Fula, Fulah, Pulaar, Pular","FF",null,"Falkland Islands Pound","FKP",null,null,null,null,null,null,null,null,null,null,null,"FKP","Falkland Islands Pound"]
[null,null,"CV","Cabo Verde",null,"Congo (Democratic Republic of the)","CD",null,"Galician","GL",null,"Pound Sterling","GBP",null,null,null,null,null,null,null,null,null,null,null,"GBP","Pound Sterling"]
[null,null,"CW","Curaçao",null,"Cook Islands","CK",null,"Georgian","KA",null,"Lari","GEL",null,null,null,null,null,null,null,null,null,null,null,"GEL","Lari"]
[null,null,"CX","Christmas Island",null,"Costa Rica","CR",null,"German","DE",null,"Ghana Cedi","GHS",null,null,null,null,null,null,null,null,null,null,null,"GHS","Ghana Cedi"]
[null,null,"CY","Cyprus",null,"Côte d'Ivoire","CI",null,"Greek (modern)","EL",null,"Gibraltar Pound","GIP",null,null,null,null,null,null,null,null,null,null,null,"GIP","Gibraltar Pound"]
[null,null,"CZ","Czech Republic",null,"Croatia","HR",null,"Guaraní","GN",null,"Dalasi","GMD",null,null,null,null,null,null,null,null,null,null,null,"GMD","Dalasi"]
[null,null,"DE","Germany",null,"Cuba","CU",null,"Gujarati","GU",null,"Guinea Franc","GNF",null,null,null,null,null,null,null,null,null,null,null,"GNF","Guinea Franc"]
[null,null,"DJ","Djibouti",null,"Curaçao","CW",null,"Haitian, Haitian Creole","HT",null,"Quetzal","GTQ",null,null,null,null,null,null,null,null,null,null,null,"GTQ","Quetzal"]
[null,null,"DK","Denmark",null,"Cyprus","CY",null,"Hausa","HA",null,"Guyana Dollar","GYD",null,null,null,null,null,null,null,null,null,null,null,"GYD","Guyana Dollar"]
[null,null,"DM","Dominica",null,"Czech Republic","CZ",null,"Hebrew (modern)","HE",null,"Hong Kong Dollar","HKD",null,null,null,null,null,null,null,null,null,null,null,"HKD","Hong Kong Dollar"]
[null,null,"DO","Dominican Republic",null,"Denmark","DK",null,"Herero","HZ",null,"Lempira","HNL",null,null,null,null,null,null,null,null,null,null,null,"HNL","Lempira"]
[null,null,"DZ","Algeria",null,"Djibouti","DJ",null,"Hindi","HI",null,"Croatian Kuna","HRK",null,null,null,null,null,null,null,null,null,null,null,"HRK","Croatian Kuna"]
[null,null,"EC","Ecuador",null,"Dominica","DM",null,"Hiri Motu","HO",null,"Gourde","HTG",null,null,null,null,null,null,null,null,null,null,null,"HTG","Gourde"]
[null,null,"EE","Estonia",null,"Dominican Republic","DO",null,"Hungarian","HU",null,"Forint","HUF",null,null,null,null,null,null,null,null,null,null,null,"HUF","Forint"]
[null,null,"EG","Egypt",null,"Ecuador","EC",null,"Interlingua","IA",null,"Rupiah","IDR",null,null,null,null,null,null,null,null,null,null,null,"IDR","Rupiah"]
[null,null,"EH","Western Sahara",null,"Egypt","EG",null,"Indonesian","ID",null,"New Israeli Sheqel","ILS",null,null,null,null,null,null,null,null,null,null,null,"ILS","New Israeli Sheqel"]
[null,null,"ER","Eritrea",null,"El Salvador","SV",null,"Interlingue","IE",null,"Indian Rupee","INR",null,null,null,null,null,null,null,null,null,null,null,"INR","Indian Rupee"]
[null,null,"ES","Spain",null,"Equatorial Guinea","GQ",null,"Irish","GA",null,"Iraqi Dinar","IQD",null,null,null,null,null,null,null,null,null,null,null,"IQD","Iraqi Dinar"]
[null,null,"ET","Ethiopia",null,"Eritrea","ER",null,"Igbo","IG",null,"Iranian Rial","IRR",null,null,null,null,null,null,null,null,null,null,null,"IRR","Iranian Rial"]
[null,null,"FI","Finland",null,"Estonia","EE",null,"Inupiaq","IK",null,"Iceland Krona","ISK",null,null,null,null,null,null,null,null,null,null,null,"ISK","Iceland Krona"]
[null,null,"FJ","Fiji",null,"Ethiopia","ET",null,"Ido","IO",null,"Jamaican Dollar","JMD",null,null,null,null,null,null,null,null,null,null,null,"JMD","Jamaican Dollar"]
[null,null,"FK","Falkland Islands (Malvinas)",null,"Falkland Islands (Malvinas)","FK",null,"Icelandic","IS",null,"Jordanian Dinar","JOD",null,null,null,null,null,null,null,null,null,null,null,"JOD","Jordanian Dinar"]
[null,null,"FM","Micronesia (Federated States of)",null,"Faroe Islands","FO",null,"Italian","IT",null,"Yen","JPY",null,null,null,null,null,null,null,null,null,null,null,"JPY","Yen"]
[null,null,"FO","Faroe Islands",null,"Fiji","FJ",null,"Inuktitut","IU",null,"Kenyan Shilling","KES",null,null,null,null,null,null,null,null,null,null,null,"KES","Kenyan Shilling"]
[null,null,"FR","France",null,"Finland","FI",null,"Japanese","JA",null,"Som","KGS",null,null,null,null,null,null,null,null,null,null,null,"KGS","Som"]
[null,null,"GA","Gabon",null,"France","FR",null,"Javanese","JV",null,"Riel","KHR",null,null,null,null,null,null,null,null,null,null,null,"KHR","Riel"]
[null,null,"GB","United Kingdom",null,"French Guiana","GF",null,"Kalaallisut, Greenlandic","KL",null,"Comoro Franc","KMF",null,null,null,null,null,null,null,null,null,null,null,"KMF","Comoro Franc"]
[null,null,"GD","Grenada",null,"French Polynesia","PF",null,"Kannada","KN",null,"North Korean Won","KPW",null,null,null,null,null,null,null,null,null,null,null,"KPW","North Korean Won"]
[null,null,"GE","Georgia",null,"French Southern Territories","TF",null,"Kanuri","KR",null,"Won","KRW",null,null,null,null,null,null,null,null,null,null,null,"KRW","Won"]
[null,null,"GF","French Guiana",null,"Gabon","GA",null,"Kashmiri","KS",null,"Kuwaiti Dinar","KWD",null,null,null,null,null,null,null,null,null,null,null,"KWD","Kuwaiti Dinar"]
[null,null,"GG","Guernsey",null,"Gambia","GM",null,"Kazakh","KK",null,"Cayman Islands Dollar","KYD",null,null,null,null,null,null,null,null,null,null,null,"KYD","Cayman Islands Dollar"]
[null,null,"GH","Ghana",null,"Georgia","GE",null,"Khmer","KM",null,"Tenge","KZT",null,null,null,null,null,null,null,null,null,null,null,"KZT","Tenge"]
[null,null,"GI","Gibraltar",null,"Germany","DE",null,"Kikuyu, Gikuyu","KI",null,"Kip","LAK",null,null,null,null,null,null,null,null,null,null,null,"LAK","Kip"]
[null,null,"GL","Greenland",null,"Ghana","GH",null,"Kinyarwanda","RW",null,"Lebanese Pound","LBP",null,null,null,null,null,null,null,null,null,null,null,"LBP","Lebanese Pound"]
[null,null,"GM","Gambia",null,"Gibraltar","GI",null,"Kyrgyz","KY",null,"Sri Lanka Rupee","LKR",null,null,null,null,null,null,null,null,null,null,null,"LKR","Sri Lanka Rupee"]
[null,null,"GN","Guinea",null,"Greece","GR",null,"Komi","KV",null,"Liberian Dollar","LRD",null,null,null,null,null,null,null,null,null,null,null,"LRD","Liberian Dollar"]
[null,null,"GP","Guadeloupe",null,"Greenland","GL",null,"Kongo","KG",null,"Loti","LSL",null,null,null,null,null,null,null,null,null,null,null,"LSL","Loti"]
[null,null,"GQ","Equatorial Guinea",null,"Grenada","GD",null,"Korean","KO",null,"Lithuanian Litas","LTL",null,null,null,null,null,null,null,null,null,null,null,"LTL","Lithuanian Litas"]
[null,null,"GR","Greece",null,"Guadeloupe","GP",null,"Kurdish","KU",null,"Latvian Lats","LVL",null,null,null,null,null,null,null,null,null,null,null,"LVL","Latvian Lats"]
[null,null,"GS","South Georgia and the South Sandwich Islands",null,"Guam","GU",null,"Kwanyama, Kuanyama","KJ",null,"Libyan Dinar","LYD",null,null,null,null,null,null,null,null,null,null,null,"LYD","Libyan Dinar"]
[null,null,"GT","Guatemala",null,"Guatemala","GT",null,"Latin","LA",null,"Moroccan Dirham","MAD",null,null,null,null,null,null,null,null,null,null,null,"MAD","Moroccan Dirham"]
[null,null,"GU","Guam",null,"Guernsey","GG",null,"Luxembourgish, Letzeburgesch","LB",null,"Moldovan Leu","MDL",null,null,null,null,null,null,null,null,null,null,null,"MDL","Moldovan Leu"]
[null,null,"GW","Guinea-Bissau",null,"Guinea","GN",null,"Ganda","LG",null,"Malagasy Ariary","MGA",null,null,null,null,null,null,null,null,null,null,null,"MGA","Malagasy Ariary"]
[null,null,"GY","Guyana",null,"Guinea-Bissau","GW",null,"Limburgish, Limburgan, Limburger","LI",null,"Denar","MKD",null,null,null,null,null,null,null,null,null,null,null,"MKD","Denar"]
[null,null,"HK","Hong Kong",null,"Guyana","GY",null,"Lingala","LN",null,"Kyat","MMK",null,null,null,null,null,null,null,null,null,null,null,"MMK","Kyat"]
[null,null,"HM","Heard Island and McDonald Islands",null,"Haiti","HT",null,"Lao","LO",null,"Tugrik","MNT",null,null,null,null,null,null,null,null,null,null,null,"MNT","Tugrik"]
[null,null,"HN","Honduras",null,"Heard Island and McDonald Islands","HM",null,"Lithuanian","LT",null,"Pataca","MOP",null,null,null,null,null,null,null,null,null,null,null,"MOP","Pataca"]
[null,null,"HR","Croatia",null,"Holy See","VA",null,"Luba-Katanga","LU",null,"Ouguiya","MRO",null,null,null,null,null,null,null,null,null,null,null,"MRO","Ouguiya"]
[null,null,"HT","Haiti",null,"Honduras","HN",null,"Latvian","LV",null,"Mauritius Rupee","MUR",null,null,null,null,null,null,null,null,null,null,null,"MUR","Mauritius Rupee"]
[null,null,"HU","Hungary",null,"Hong Kong","HK",null,"Manx","GV",null,"Rufiyaa","MVR",null,null,null,null,null,null,null,null,null,null,null,"MVR","Rufiyaa"]
[null,null,"ID","Indonesia",null,"Hungary","HU",null,"Macedonian","MK",null,"Kwacha","MWK",null,null,null,null,null,null,null,null,null,null,null,"MWK","Kwacha"]
[null,null,"IE","Ireland",null,"Iceland","IS",null,"Malagasy","MG",null,"Mexican Peso","MXN",null,null,null,null,null,null,null,null,null,null,null,"MXN","Mexican Peso"]
[null,null,"IL","Israel",null,"India","IN",null,"Malay","MS",null,"Mexican Unidad de Inversion (UDI)","MXV",null,null,null,null,null,null,null,null,null,null,null,"MXV","Mexican Unidad de Inversion (UDI)"]
[null,null,"IM","Isle of Man",null,"Indonesia","ID",null,"Malayalam","ML",null,"Malaysian Ringgit","MYR",null,null,null,null,null,null,null,null,null,null,null,"MYR","Malaysian Ringgit"]
[null,null,"IN","India",null,"Iran (Islamic Republic of)","IR",null,"Maltese","MT",null,"Mozambique Metical","MZN",null,null,null,null,null,null,null,null,null,null,null,"MZN","Mozambique Metical"]
[null,null,"IO","British Indian Ocean Territory",null,"Iraq","IQ",null,"Māori","MI",null,"Namibia Dollar","NAD",null,null,null,null,null,null,null,null,null,null,null,"NAD","Namibia Dollar"]
[null,null,"IQ","Iraq",null,"Ireland","IE",null,"Marathi (Marāṭhī)","MR",null,"Naira","NGN",null,null,null,null,null,null,null,null,null,null,null,"NGN","Naira"]
[null,null,"IR","Iran (Islamic Republic of)",null,"Isle of Man","IM",null,"Marshallese","MH",null,"Cordoba Oro","NIO",null,null,null,null,null,null,null,null,null,null,null,"NIO","Cordoba Oro"]
[null,null,"IS","Iceland",null,"Israel","IL",null,"Mongolian","MN",null,"Norwegian Krone","NOK",null,null,null,null,null,null,null,null,null,null,null,"NOK","Norwegian Krone"]
[null,null,"IT","Italy",null,"Italy","IT",null,"Nauruan","NA",null,"Nepalese Rupee","NPR",null,null,null,null,null,null,null,null,null,null,null,"NPR","Nepalese Rupee"]
[null,null,"JE","Jersey",null,"Jamaica","JM",null,"Navajo, Navaho","NV",null,"New Zealand Dollar","NZD",null,null,null,null,null,null,null,null,null,null,null,"NZD","New Zealand Dollar"]
[null,null,"JM","Jamaica",null,"Japan","JP",null,"Northern Ndebele","ND",null,"Rial Omani","OMR",null,null,null,null,null,null,null,null,null,null,null,"OMR","Rial Omani"]
[null,null,"JO","Jordan",null,"Jersey","JE",null,"Nepali","NE",null,"Balboa","PAB",null,null,null,null,null,null,null,null,null,null,null,"PAB","Balboa"]
[null,null,"JP","Japan",null,"Jordan","JO",null,"Ndonga","NG",null,"Nuevo Sol","PEN",null,null,null,null,null,null,null,null,null,null,null,"PEN","Nuevo Sol"]
[null,null,"KE","Kenya",null,"Kazakhstan","KZ",null,"Norwegian Bokmål","NB",null,"Kina","PGK",null,null,null,null,null,null,null,null,null,null,null,"PGK","Kina"]
[null,null,"KG","Kyrgyzstan",null,"Kenya","KE",null,"Norwegian Nynorsk","NN",null,"Philippine Peso","PHP",null,null,null,null,null,null,null,null,null,null,null,"PHP","Philippine Peso"]
[null,null,"KH","Cambodia",null,"Kiribati","KI",null,"Norwegian","NO",null,"Pakistan Rupee","PKR",null,null,null,null,null,null,null,null,null,null,null,"PKR","Pakistan Rupee"]
[null,null,"KI","Kiribati",null,"Korea (Democratic People's Republic of)","KP",null,"Nuosu","II",null,"Zloty","PLN",null,null,null,null,null,null,null,null,null,null,null,"PLN","Zloty"]
[null,null,"KM","Comoros",null,"Korea (Republic of)","KR",null,"Southern Ndebele","NR",null,"Guarani","PYG",null,null,null,null,null,null,null,null,null,null,null,"PYG","Guarani"]
[null,null,"KN","Saint Kitts and Nevis",null,"Kosovo","XK",null,"Occitan","OC",null,"Qatari Rial","QAR"]
[null,null,"KP","Korea (Democratic People's Republic of)",null,"Kuwait","KW",null,"Ojibwe, Ojibwa","OJ",null,"New Romanian Leu","RON",null,null,null,null,null,null,null,null,null,null,null,"QAR","Qatari Rial"]
[null,null,"KR","Korea (Republic of)",null,"Kyrgyzstan","KG",null,"Old Church Slavonic, Church Slavonic, Old Bulgarian","CU",null,"Serbian Dinar","RSD",null,null,null,null,null,null,null,null,null,null,null,"RON","New Romanian Leu"]
[null,null,"KW","Kuwait",null,"Lao People's Democratic Republic","LA",null,"Oromo","OM",null,"Russian Ruble","RUB",null,null,null,null,null,null,null,null,null,null,null,"RSD","Serbian Dinar"]
[null,null,"KY","Cayman Islands",null,"Latvia","LV",null,"Oriya","OR",null,"Rwanda Franc","RWF",null,null,null,null,null,null,null,null,null,null,null,"RUB","Russian Ruble"]
[null,null,"KZ","Kazakhstan",null,"Lebanon","LB",null,"Ossetian, Ossetic","OS",null,"Saudi Riyal","SAR",null,null,null,null,null,null,null,null,null,null,null,"RWF","Rwanda Franc"]
[null,null,"LA","Lao People's Democratic Republic",null,"Lesotho","LS",null,"(Eastern) Punjabi","PA",null,"Solomon Islands Dollar","SBD",null,null,null,null,null,null,null,null,null,null,null,"SAR","Saudi Riyal"]
[null,null,"LB","Lebanon",null,"Liberia","LR",null,"Pāli","PI",null,"Seychelles Rupee","SCR",null,null,null,null,null,null,null,null,null,null,null,"SBD","Solomon Islands Dollar"]
[null,null,"LC","Saint Lucia",null,"Libya","LY",null,"Persian (Farsi)","FA",null,"Sudanese Pound","SDG",null,null,null,null,null,null,null,null,null,null,null,"SCR","Seychelles Rupee"]
[null,null,"LI","Liechtenstein",null,"Liechtenstein","LI",null,"Polish","PL",null,"Swedish Krona","SEK",null,null,null,null,null,null,null,null,null,null,null,"SDG","Sudanese Pound"]
[null,null,"LK","Sri Lanka",null,"Lithuania","LT",null,"Pashto, Pushto","PS",null,"Singapore Dollar","SGD",null,null,null,null,null,null,null,null,null,null,null,"SEK","Swedish Krona"]
[null,null,"LR","Liberia",null,"Luxembourg","LU",null,"Portuguese","PT",null,"Saint Helena Pound","SHP",null,null,null,null,null,null,null,null,null,null,null,"SGD","Singapore Dollar"]
[null,null,"LS","Lesotho",null,"Macao","MO",null,"Quechua","QU",null,"Leone","SLL",null,null,null,null,null,null,null,null,null,null,null,"SHP","Saint Helena Pound"]
[null,null,"LT","Lithuania",null,"Macedonia (the former Yugoslav Republic of)","MK",null,"Romansh","RM",null,"Somali Shilling","SOS",null,null,null,null,null,null,null,null,null,null,null,"SLL","Leone"]
[null,null,"LU","Luxembourg",null,"Madagascar","MG",null,"Kirundi","RN",null,"Surinam Dollar","SRD",null,null,null,null,null,null,null,null,null,null,null,"SOS","Somali Shilling"]
[null,null,"LV","Latvia",null,"Malawi","MW",null,"Romanian","RO",null,"South Sudanese Pound","SSP",null,null,null,null,null,null,null,null,null,null,null,"SRD","Surinam Dollar"]
[null,null,"LY","Libya",null,"Malaysia","MY",null,"Russian","RU",null,"Dobra","STD",null,null,null,null,null,null,null,null,null,null,null,"SSP","South Sudanese Pound"]
[null,null,"MA","Morocco",null,"Maldives","MV",null,"Sanskrit (Saṁskṛta)","SA",null,"El Salvador Colon","SVC",null,null,null,null,null,null,null,null,null,null,null,"STD","Dobra"]
[null,null,"MC","Monaco",null,"Mali","ML",null,"Sardinian","SC",null,"Syrian Pound","SYP",null,null,null,null,null,null,null,null,null,null,null,"SVC","El Salvador Colon"]
[null,null,"MD","Moldova (Republic of)",null,"Malta","MT",null,"Sindhi","SD",null,"Lilangeni","SZL",null,null,null,null,null,null,null,null,null,null,null,"SYP","Syrian Pound"]
[null,null,"ME","Montenegro",null,"Marshall Islands","MH",null,"Northern Sami","SE",null,"Baht","THB",null,null,null,null,null,null,null,null,null,null,null,"SZL","Lilangeni"]
[null,null,"MF","Saint Martin (French part)",null,"Martinique","MQ",null,"Samoan","SM",null,"Somoni","TJS",null,null,null,null,null,null,null,null,null,null,null,"THB","Baht"]
[null,null,"MG","Madagascar",null,"Mauritania","MR",null,"Sango","SG",null,"Turkmenistan New Manat","TMT",null,null,null,null,null,null,null,null,null,null,null,"TJS","Somoni"]
[null,null,"MH","Marshall Islands",null,"Mauritius","MU",null,"Serbian","SR",null,"Tunisian Dinar","TND",null,null,null,null,null,null,null,null,null,null,null,"TMT","Turkmenistan New Manat"]
[null,null,"MK","Macedonia (the former Yugoslav Republic of)",null,"Mayotte","YT",null,"Scottish Gaelic, Gaelic","GD",null,"Pa’anga","TOP",null,null,null,null,null,null,null,null,null,null,null,"TND","Tunisian Dinar"]
[null,null,"ML","Mali",null,"Mexico","MX",null,"Shona","SN",null,"Turkish Lira","TRY",null,null,null,null,null,null,null,null,null,null,null,"TOP","Pa’anga"]
[null,null,"MM","Myanmar",null,"Micronesia (Federated States of)","FM",null,"Sinhalese, Sinhala","SI",null,"Trinidad and Tobago Dollar","TTD",null,null,null,null,null,null,null,null,null,null,null,"TRY","Turkish Lira"]
[null,null,"MN","Mongolia",null,"Moldova (Republic of)","MD",null,"Slovak","SK",null,"New Taiwan Dollar","TWD",null,null,null,null,null,null,null,null,null,null,null,"TTD","Trinidad and Tobago Dollar"]
[null,null,"MO","Macao",null,"Monaco","MC",null,"Slovene","SL",null,"Tanzanian Shilling","TZS",null,null,null,null,null,null,null,null,null,null,null,"TWD","New Taiwan Dollar"]
[null,null,"MP","Northern Mariana Islands",null,"Mongolia","MN",null,"Somali","SO",null,"Hryvnia","UAH",null,null,null,null,null,null,null,null,null,null,null,"TZS","Tanzanian Shilling"]
[null,null,"MQ","Martinique",null,"Montenegro","ME",null,"Southern Sotho","ST",null,"Uganda Shilling","UGX",null,null,null,null,null,null,null,null,null,null,null,"UAH","Hryvnia"]
[null,null,"MR","Mauritania",null,"Montserrat","MS",null,"Spanish","ES",null,"US Dollar","USD",null,null,null,null,null,null,null,null,null,null,null,"UGX","Uganda Shilling"]
[null,null,"MS","Montserrat",null,"Morocco","MA",null,"Sundanese","SU",null,"US Dollar (Next day)","USN",null,null,null,null,null,null,null,null,null,null,null,"USD","US Dollar"]
[null,null,"MT","Malta",null,"Mozambique","MZ",null,"Swahili","SW",null," US Dollar (Same day)","USS",null,null,null,null,null,null,null,null,null,null,null,"USN","US Dollar (Next day)"]
[null,null,"MU","Mauritius",null,"Myanmar","MM",null,"Swati","SS",null,"Uruguay Peso en Unidades Indexadas (URUIURUI)","UYI",null,null,null,null,null,null,null,null,null,null,null,"USS"," US Dollar (Same day)"]
[null,null,"MV","Maldives",null,"Namibia","NA",null,"Swedish","SV",null,"Peso Uruguayo","UYU",null,null,null,null,null,null,null,null,null,null,null,"UYI","Uruguay Peso en Unidades Indexadas (URUIURUI)"]
[null,null,"MW","Malawi",null,"Nauru","NR",null,"Tamil","TA",null,"Uzbekistan Sum","UZS",null,null,null,null,null,null,null,null,null,null,null,"UYU","Peso Uruguayo"]
[null,null,"MX","Mexico",null,"Nepal","NP",null,"Telugu","TE",null,"Bolivar","VEF",null,null,null,null,null,null,null,null,null,null,null,"UZS","Uzbekistan Sum"]
[null,null,"MY","Malaysia",null,"Netherlands","NL",null,"Tajik","TG",null,"Dong","VND",null,null,null,null,null,null,null,null,null,null,null,"VEF","Bolivar"]
[null,null,"MZ","Mozambique",null,"New Caledonia","NC",null,"Thai","TH",null,"Vatu","VUV",null,null,null,null,null,null,null,null,null,null,null,"VND","Dong"]
[null,null,"NA","Namibia",null,"New Zealand","NZ",null,"Tigrinya","TI",null,"Tala","WST",null,null,null,null,null,null,null,null,null,null,null,"VUV","Vatu"]
[null,null,"NC","New Caledonia",null,"Nicaragua","NI",null,"Tibetan Standard, Tibetan, Central","BO",null,"CFA Franc BEAC","XAF",null,null,null,null,null,null,null,null,null,null,null,"WST","Tala"]
[null,null,"NE","Niger",null,"Niger","NE",null,"Turkmen","TK",null,"Silver","XAG",null,null,null,null,null,null,null,null,null,null,null,"XAF","CFA Franc BEAC"]
[null,null,"NF","Norfolk Island",null,"Nigeria","NG",null,"Tagalog","TL",null,"Gold","XAU",null,null,null,null,null,null,null,null,null,null,null,"XAG","Silver"]
[null,null,"NG","Nigeria",null,"Niue","NU",null,"Tswana","TN",null,"Bond Markets Unit European Composite Unit (EURCO)","XBA",null,null,null,null,null,null,null,null,null,null,null,"XAU","Gold"]
[null,null,"NI","Nicaragua",null,"Norfolk Island","NF",null,"Tonga (Tonga Islands)","TO",null,"Bond Markets Unit European Monetary Unit (E.M.U.-6)","XBB",null,null,null,null,null,null,null,null,null,null,null,"XBA","Bond Markets Unit European Composite Unit (EURCO)"]
[null,null,"NL","Netherlands",null,"Northern Mariana Islands","MP",null,"Turkish","TR",null,"Bond Markets Unit European Unit of Account 9 (E.U.A.-9)","XBC",null,null,null,null,null,null,null,null,null,null,null,"XBB","Bond Markets Unit European Monetary Unit (E.M.U.-6)"]
[null,null,"NO","Norway",null,"Norway","NO",null,"Tsonga","TS",null,"Bond Markets Unit European Unit of Account 17 (E.U.A.-17)","XBD",null,null,null,null,null,null,null,null,null,null,null,"XBC","Bond Markets Unit European Unit of Account 9 (E.U.A.-9)"]
[null,null,"NP","Nepal",null,"Oman","OM",null,"Tatar","TT",null,"East Caribbean Dollar","XCD",null,null,null,null,null,null,null,null,null,null,null,"XBD","Bond Markets Unit European Unit of Account 17 (E.U.A.-17)"]
[null,null,"NR","Nauru",null,"Pakistan","PK",null,"Twi","TW",null,"SDR (Special Drawing Right)","XDR",null,null,null,null,null,null,null,null,null,null,null,"XCD","East Caribbean Dollar"]
[null,null,"NU","Niue",null,"Palau","PW",null,"Tahitian","TY",null,"UIC-Franc","XFU",null,null,null,null,null,null,null,null,null,null,null,"XDR","SDR (Special Drawing Right)"]
[null,null,"NZ","New Zealand",null,"Palestine, State of","PS",null,"Uyghur","UG",null,"CFA Franc BCEAO","XOF",null,null,null,null,null,null,null,null,null,null,null,"XFU","UIC-Franc"]
[null,null,"OM","Oman",null,"Panama","PA",null,"Ukrainian","UK",null,"Palladium","XPD",null,null,null,null,null,null,null,null,null,null,null,"XOF","CFA Franc BCEAO"]
[null,null,"PA","Panama",null,"Papua New Guinea","PG",null,"Urdu","UR",null,"CFP Franc","XPF",null,null,null,null,null,null,null,null,null,null,null,"XPD","Palladium"]
[null,null,"PE","Peru",null,"Paraguay","PY",null,"Uzbek","UZ",null,"Platinum","XPT",null,null,null,null,null,null,null,null,null,null,null,"XPF","CFP Franc"]
[null,null,"PF","French Polynesia",null,"Peru","PE",null,"Venda","VE",null,"Sucre","XSU",null,null,null,null,null,null,null,null,null,null,null,"XPT","Platinum"]
[null,null,"PG","Papua New Guinea",null,"Philippines","PH",null,"Vietnamese","VI",null,"ADB Unit of Account","XUA",null,null,null,null,null,null,null,null,null,null,null,"XSU","Sucre"]
[null,null,"PH","Philippines",null,"Pitcairn","PN",null,"Volapük","VO",null,"The codes assigned for transactions where no currency is involved","XXX",null,null,null,null,null,null,null,null,null,null,null,"XUA","ADB Unit of Account"]
[null,null,"PK","Pakistan",null,"Poland","PL",null,"Walloon","WA",null,"Yemeni Rial","YER",null,null,null,null,null,null,null,null,null,null,null,"XXX","The codes assigned for transactions where no currency is involved"]
[null,null,"PL","Poland",null,"Portugal","PT",null,"Welsh","CY",null,"Rand","ZAR",null,null,null,null,null,null,null,null,null,null,null,"YER","Yemeni Rial"]
[null,null,"PM","Saint Pierre and Miquelon",null,"Puerto Rico","PR",null,"Wolof","WO",null,"Zambian Kwacha","ZMW",null,null,null,null,null,null,null,null,null,null,null,"ZAR","Rand"]
[null,null,"PN","Pitcairn",null,"Qatar","QA",null,"Western Frisian","FY",null,"Zimbabwe Dollar","ZWL",null,null,null,null,null,null,null,null,null,null,null,"ZMW","Zambian Kwacha"]
[null,null,"PR","Puerto Rico",null,"Réunion","RE",null,"Xhosa","XH",null,null,null,null,null,null,null,null,null,null,null,null,null,null,"ZWL","Zimbabwe Dollar"]
[null,null,"PS","Palestine, State of",null,"Romania","RO",null,"Yiddish","YI"]
[null,null,"PT","Portugal",null,"Russian Federation","RU",null,"Yoruba","YO"]
[null,null,"PW","Palau",null,"Rwanda","RW",null,"Zhuang, Chuang","ZA"]
[null,null,"PY","Paraguay",null,"Saint Barthélemy","BL",null,"Zulu","ZU"]
[null,null,"QA","Qatar",null,"Saint Helena, Ascension and Tristan da Cunha","SH"]
[null,null,"RE","Réunion",null,"Saint Kitts and Nevis","KN"]
[null,null,"RO","Romania",null,"Saint Lucia","LC"]
[null,null,"RS","Serbia",null,"Saint Martin (French part)","MF"]
[null,null,"RU","Russian Federation",null,"Saint Pierre and Miquelon","PM"]
[null,null,"RW","Rwanda",null,"Saint Vincent and the Grenadines","VC"]
[null,null,"SA","Saudi Arabia",null,"Samoa","WS"]
[null,null,"SB","Solomon Islands",null,"San Marino","SM"]
[null,null,"SC","Seychelles",null,"Sao Tome and Principe","ST"]
[null,null,"SD","Sudan",null,"Saudi Arabia","SA"]
[null,null,"SE","Sweden",null,"Senegal","SN"]
[null,null,"SG","Singapore",null,"Serbia","RS"]
[null,null,"SH","Saint Helena, Ascension and Tristan da Cunha",null,"Seychelles","SC"]
[null,null,"SI","Slovenia",null,"Sierra Leone","SL"]
[null,null,"SJ","Svalbard and Jan Mayen",null,"Singapore","SG"]
[null,null,"SK","Slovakia",null,"Sint Maarten (Dutch part)","SX"]
[null,null,"SL","Sierra Leone",null,"Slovakia","SK"]
[null,null,"SM","San Marino",null,"Slovenia","SI"]
[null,null,"SN","Senegal",null,"Solomon Islands","SB"]
[null,null,"SO","Somalia",null,"Somalia","SO"]
[null,null,"SR","Suriname",null,"South Africa","ZA"]
[null,null,"SS","South Sudan",null,"South Georgia and the South Sandwich Islands","GS"]
[null,null,"ST","Sao Tome and Principe",null,"South Sudan","SS"]
[null,null,"SV","El Salvador",null,"Spain","ES"]
[null,null,"SX","Sint Maarten (Dutch part)",null,"Sri Lanka","LK"]
[null,null,"SY","Syrian Arab Republic",null,"Stateless","X5"]
[null,null,"SZ","Swaziland",null,"Sudan","SD"]
[null,null,"TC","Turks and Caicos Islands",null,"Suriname","SR"]
[null,null,"TD","Chad",null,"Svalbard and Jan Mayen","SJ"]
[null,null,"TF","French Southern Territories",null,"Swaziland","SZ"]
[null,null,"TG","Togo",null,"Sweden","SE"]
[null,null,"TH","Thailand",null,"Switzerland","CH"]
[null,null,"TJ","Tajikistan",null,"Syrian Arab Republic","SY"]
[null,null,"TK","Tokelau",null,"Taiwan, Province of China[a]","TW"]
[null,null,"TL","Timor-Leste",null,"Tajikistan","TJ"]
[null,null,"TM","Turkmenistan",null,"Tanzania, United Republic of","TZ"]
[null,null,"TN","Tunisia",null,"Thailand","TH"]
[null,null,"TO","Tonga",null,"Timor-Leste","TL"]
[null,null,"TR","Turkey",null,"Togo","TG"]
[null,null,"TT","Trinidad and Tobago",null,"Tokelau","TK"]
[null,null,"TV","Tuvalu",null,"Tonga","TO"]
[null,null,"TW","Taiwan, Province of China[a]",null,"Trinidad and Tobago","TT"]
[null,null,"TZ","Tanzania, United Republic of",null,"Tunisia","TN"]
[null,null,"UA","Ukraine",null,"Turkey","TR"]
[null,null,"UG","Uganda",null,"Turkmenistan","TM"]
[null,null,"UM","United States Minor Outlying Islands",null,"Turks and Caicos Islands","TC"]
[null,null,"US","United States of America",null,"Tuvalu","TV"]
[null,null,"UY","Uruguay",null,"Uganda","UG"]
[null,null,"UZ","Uzbekistan",null,"Ukraine","UA"]
[null,null,"VA","Holy See",null,"United Arab Emirates","AE"]
[null,null,"VC","Saint Vincent and the Grenadines",null,"United Kingdom","GB"]
[null,null,"VE","Venezuela (Bolivarian Republic of)",null,"United States of America","US"]
[null,null,"VG","Virgin Islands (British)",null,"United States Minor Outlying Islands","UM"]
[null,null,"VI","Virgin Islands (U.S.)",null,"Uruguay","UY"]
[null,null,"VN","Viet Nam",null,"Uzbekistan","UZ"]
[null,null,"VU","Vanuatu",null,"Vanuatu","VU"]
[null,null,"WF","Wallis and Futuna",null,"Venezuela (Bolivarian Republic of)","VE"]
[null,null,"WS","Samoa",null,"Viet Nam","VN"]
[null,null,"XK","Kosovo",null,"Virgin Islands (British)","VG"]
[null,null,"X5","Stateless",null,"Virgin Islands (U.S.)","VI"]
[null,null,"YE","Yemen",null,"Wallis and Futuna","WF"]
[null,null,"YT","Mayotte",null,"Western Sahara","EH"]
[null,null,"ZA","South Africa",null,"Yemen","YE"]
[null,null,"ZM","Zambia",null,"Zambia","ZM"]
[null,null,"ZW","Zimbabwe",null,"Zimbabwe","ZW"]